Workbook

Sheet U10組合せ
A1: ＪＦＡ Ｕ-１０サッカーリーグ2018（in栃木） 宇河地域リーグ戦（後期）
A2: ブロック別 組合せ・日程 ・ 会場一覧
C3: Ａ ブロック | E3: Ｂ ブロック | G3: Ｃ ブロック | I3: 備 考
C4: （10チーム） | E4: （９チーム） | G4: （９チーム）
I5: 会場チーム
A6: １ | C6: ＳＵＧＡＯ ＳＣ | E6: 陽東ＳＳＳ | G6: Ｓ４スペランツァ
A7: ２ | C7: ＦＣアネーロ宇都宮 U10 | E7: 姿川第一ＦＣ | G7: みはらＳＣ Ｊｒ
A8: ３ | C8: ＦＣアリーバ | E8: 豊郷ＪＦＣ宇都宮 | G8: ＦＣグラシアス
A9: ４ | C9: 雀宮ＦＣ | E9: 石井ＦＣ | G9: サウス宇都宮ＳＣ
A10: ５ | C10: ブラッドレスＳＳ | E10: シャルムグランツＳＣ | G10: ＦＣグランディール宇都宮
A11: ６ | C11: 上河内ＪＳＣ | E11: ｕｎｉｏｎ ｓｃ | G11: 昭和・戸祭ＳＣ
A12: ７ | C12: 清原ＳＳＳ | E12: ＦＣブロケード | G12: カテット白沢ＳＳ
A13: ８ | C13: 緑が丘ＹＦＣ | E13: 栃木ＳＣジュニア | G13: 宇都宮北部ＦＣトレ
A14: ９ | C14: ＦＣペンサーレ | E14: 国本ＪＳＣ | G14: ともぞうＳＣ U10
A15: １０ | C15: 富士見ＳＳＳ
A16: 2018-09-02 | B16: 日 | C16: １節 | D16: 陽南小 | E16: １節 | F16: 陽東小 | G16: １節 | H16: 雀宮南小
A17: 2018-09-08 | B17: 土 | C17: 2節 | D17: 陽南小 | E17: 2節 | F17: 陽東小 | G17: 2節 | H17: 雀宮南小
A18: 2018-09-09 | B18: 日 | C18: 3節 | D18: 清原東小 | E18: 3節 | F18: 豊郷北小 | G18: 3節 | H18: 雀宮南小
A19: 2018-09-17 | B19: 月 | C19: 4節 | D19: 陽南小 | E19: 4節 | F19: 豊郷北小 | G19: 4節 | H19: 雀宮南小
A20: 2018-09-23 | B20: 日 | C20: 5節 | D20: 陽南小
A22: Ａ ブロック 運営責任者 | D22: 池田 澄也 （南部地区副代表） 緑が丘ＹＦＣ | F22: 〒３２０－０８３４ | I22: 連絡先
F23: 宇都宮市陽南２－１１－７ | I23: ０８０-７９４０-５５４８
F24: sumyno5@ybb.ne.jp
A25: Ｂ ブロック 運営責任者 | D25: 今野 学 （東部地区副代表） 陽東ＳＳＳ | F25: 〒３２1－０９４２ | I25: 連絡先
F26: 宇都宮市峰２－１２－１７ | I26: ０９０-４８１４-８０２５
F27: sp6b6au9@polka.ocn.ne.jp
A28: Ｃ ブロック 運営責任者 | D28: 池田 澄也 （南部地区副代表） 緑が丘ＹＦＣ | F28: 〒３２０－０８３４ | I28: 連絡先
F29: 宇都宮市陽南２－１１－７ | I29: ０８０-７９４０-５５４８
F30: sumyno5@ybb.ne.jp
C31: 5 | D31: 2017-05-20 | E31: 土 | F31: 白沢A・B
C32: 6 | D32: 2017-05-21 | E32: 日 | F32: 白沢A・B
C33: 予備日 | D33: 2017-05-27 | E33: 土 | F33: 白沢A・B | J33: ４節
C35: ９チームブロック：３６試合消化
F36: １節 | H36: ２節 | J36: 1
E37: 日程 | J37: 2
E38: 会場 | J38: 3
C39: 1 | D39: 09:00:00 | E39: 09:45:00 | F39: 1 | G39: 2 | H39: 1 | I39: 4 | J39: 4
C40: 2 | D40: 09:50:00 | E40: 10:35:00 | F40: 3 | G40: 4 | H40: 2 | I40: 5 | J40: 5
C41: 3 | D41: 10:40:00 | E41: 11:25:00 | F41: 5 | G41: 6 | H41: 3 | I41: 6 | J41: 1
C42: 4 | D42: 11:30:00 | E42: 12:15:00 | F42: 7 | G42: 8 | H42: 4 | I42: 7 | J42: 2
C43: 5 | D43: 12:20:00 | E43: 13:05:00 | F43: 1 | G43: 9 | H43: 5 | I43: 8 | J43: 3
C44: 6 | D44: 13:10:00 | E44: 13:55:00 | F44: 2 | G44: 3 | H44: 6 | I44: 9 | J44: 4
C45: 7 | D45: 14:00:00 | E45: 14:45:00 | F45: 4 | G45: 5 | H45: 7 | I45: 7
C46: 8 | D46: 14:50:00 | E46: 15:35:00 | F46: 6 | G46: 7 | H46: 1 | I46: 8
C47: 9 | D47: 15:40:00 | E47: 16:25:00 | F47: 8 | G47: 9 | H47: 2 | I47: 9 | J47: ４節
C49: １０チームブロック：４５試合消化
F50: １節 | H50: ２節 | J50: 1
E51: 日程 | J51: 2
E52: 会場 | J52: 3
C53: 1 | D53: 09:00:00 | E53: 09:45:00 | F53: 1 | G53: 2 | H53: 2 | I53: 4 | J53: 4
C54: 2 | D54: 09:50:00 | E54: 10:35:00 | F54: 3 | G54: 4 | H54: 4 | I54: 5 | J54: 5
C55: 3 | D55: 10:40:00 | E55: 11:25:00 | F55: 5 | G55: 6 | H55: 6 | I55: 6 | J55: 6
C56: 4 | D56: 11:30:00 | E56: 12:15:00 | F56: 7 | G56: 8 | H56: 8 | I56: 7 | J56: 1
C57: 5 | D57: 12:20:00 | E57: 13:05:00 | F57: 9 | G57: 10 | H57: 1 | I57: 8 | J57: 2
C58: 6 | D58: 13:10:00 | E58: 13:55:00 | F58: 1 | G58: 3 | H58: 3 | I58: 9 | J58: 3
C59: 7 | D59: 14:00:00 | E59: 14:45:00 | F59: 2 | G59: 4 | H59: 4 | I59: 10
C60: 8 | D60: 14:50:00 | E60: 15:35:00 | F60: 5 | G60: 7 | H60: 7 | I60: 9
C61: 9 | D61: 15:40:00 | E61: 16:25:00 | F61: 6 | G61: 8 | H61: 8 | I61: 10
G63: は１日１試合
F64: 試合順は効率よく変更する

Sheet U10対戦スケジュール
B2: ＪＦＡ Ｕ-１０サッカーリーグ2018（in栃木） 宇河地域リーグ戦（後期）
D4: 対戦スケジュール
B5: ■Ａブロック
C6: 【 第１節 】 | G6: 【 第２節 】 | K6: 【 第３節 】
B7: 日にち | C7: ９／２（日） | G7: ９／８（土） | K7: ９／９（日）
B8: 会 場 | C8: 陽南小 Ａ | E8: 陽南小 Ｂ | G8: 陽南小 Ａ | I8: 陽南小 Ｂ | K8: 清原東小
B9: 会場担当 | C9: 緑が丘ＹＦＣ | G9: 緑が丘ＹＦＣ | K9: 清原ＳＳＳ
B10: ① 9:00 | C10: ３－７ | D10: 8/2/2 | E10: １０－４ | F10: 1/5/5/ | G10: ２－５ | H10: 8/1/1 | I10: ６－９ | J10: 4/7/7 | K10: １０－３ | L10: 1/6/6
B11: ② 9:40 | C11: ８－２ | D11: 9/3/3 | E11: １－５ | F11: 6/10/10 | G11: ８－１ | H11: 2/5/5 | I11: ４－７ | J11: 6/9/9 | K11: １－６ | L11: 2/7/7
B12: ③10:20 | C12: ９－３ | D12: 4/8/8 | E12: ６－１０ | F12: 7/1/1 | G12: ３－６ | H12: 1/4/4 | I12: ９－２ | J12: 5/8/8 | K12: ２－７ | L12: 10/3/3
B13: ④11:00 | C13: ４－８ | D13: 5/9/9 | E13: ７－１ | F13: 2/6/6 | G13: １－４ | H13: 3/6/6 | I13: ５－８ | J13: 9/2/2 | K13: ３－８ | L13: 7/10/10
B14: ⑤11:40 | C14: ５－９ | D14: 3/7/7 | E14: ２－６ | F14: 10/4/4 | G14: ３－７ | H14: 当該 | K14: ７－１０ | L14: 3/8/8
B15: ⑥12:20 | K15: ４－９ | L15: 5/10/10
B16: ⑦13:00 | K16: ５－１０ | L16: 4/9/9
C18: 【 第４節 】 | G18: 【 第５節 】
B19: 日にち | C19: ９／１７（月） | G19: ９／２３（日）
B20: 会 場 | C20: 陽南小 Ａ | E20: 陽南小 Ｂ | G20: 陽南小 Ａ | I20: 陽南小 Ｂ
B21: 会場担当 | C21: 緑が丘ＹＦＣ | G21: 緑が丘ＹＦＣ
B22: ① 9:00 | C22: ２－４ | D22: 8/10/10 | E22: ５－７ | F22: 1/3/3 | G22: １－２ | H22: 5/6/6 | I22: ３－４ | J22: 7/8/8
B23: ② 9:40 | C23: ８－１０ | D23: 4/6/6 | E23: １－３ | F23: 7/9/9 | G23: ５－６ | H23: 9/10/10 | I23: ７－８ | J23: 2/3/3
B24: ③10:20 | C24: ４－６ | D24: 10/2/2 | E24: ７－９ | F24: 3/5/5 | G24: ９－１０ | H24: 4/5/5 | I24: ２－３ | J24: 1/7/7
B25: ④11:00 | C25: １０－２ | D25: 6/8/8 | E25: ３－５ | F25: 9/1/1 | G25: ４－５ | H25: 8/9/9 | I25: ６－７ | J25: 10/1/1
B26: ⑤11:40 | C26: ６－８ | D26: 2/4/4 | E26: ９－１ | F26: 5/7/7 | G26: ８－９ | H26: 6/2/2 | I26: １０－１ | J26: 3/4/4
B28: ■Ｂブロック
C29: 【 第１節 】 | E29: 【 第２節 】 | G29: 【 第３節 】 | I29: 【 第４節 】
B30: 日にち | C30: ９／２（日） | E30: ９／８（土） | G30: ９／９（日） | I30: ９／１７（月）
B31: 会 場 | C31: 陽東小 | E31: 陽東小 | G31: 豊郷北小 | I31: 豊郷北小
B32: 会場担当 | C32: 陽東ＳＳＳ | E32: 陽東ＳＳＳ | G32: 豊郷ＪＦＣ宇都宮 | I32: 豊郷ＪＦＣ宇都宮
B33: ① 9:00 | C33: １－２ | D33: 3/4/4 | E33: １－３ | F33: 6/8/8 | G33: ４－７ | H33: 5/8/8 | I33: ３－７ | J33: 4/8/8
B34: ② 9:40 | C34: ３－４ | D34: 1/2/2 | E34: ６－８ | F34: 1/3/3 | G34: ５－８ | H34: 4/7/7 | I34: ４－８ | J34: 3/7/7
B35: ③10:20 | C35: ５－６ | D35: 7/8/8 | E35: ２－４ | F35: 7/9/9 | G35: ６－９ | H35: 1/4/4 | I35: ５－９ | J35: 6/1/1
B36: ④11:00 | C36: ７－８ | D36: 5/6/6 | E36: 7－9 | F36: 2/4/4 | G36: １－４ | H36: 6/9/9 | I36: ６－１ | J36: 5/9/9
B37: ⑤11:40 | C37: ９－１ | D37: 2/3/3 | E37: ３－５ | F37: 8/1/1 | G37: ２－５ | H37: 3/6/6 | I37: ７－２ | J37: 8/3/3
B38: ⑥12:20 | C38: ２－３ | D38: 9/1/1 | E38: ８－１ | F38: 3/5/5 | G38: ３－６ | H38: 2/5/5 | I38: ８－３ | J38: 7/2/2
B39: ⑦13:00 | C39: ４－５ | D39: 6/7/7 | E39: ４－６ | F39: 9/2/2 | G39: ７－１ | H39: 8/2/2 | I39: ９－４ | J39: 1/5/5
B40: ⑧13:40 | C40: ６－７ | D40: 8/9/9 | E40: ９－２ | F40: 5/7/7 | G40: ８－２ | H40: 9/3/3 | I40: １－５ | J40: 2/6/6
B41: ⑨14:20 | C41: ８－９ | D41: 4/5/5 | E41: ５－７ | F41: 4/6/6 | G41: ９－３ | H41: 7/1/1 | I41: ２－６ | J41: 9/4/4
B43: ■Ｃブロック
C44: 【 第１節 】 | E44: 【 第２節 】 | G44: 【 第３節 】 | I44: 【 第４節 】
B45: 日にち | C45: ９／２（日） | E45: ９／８（土） | G45: ９／９（日） | I45: ９／１７（月）
B46: 会 場 | C46: 雀宮南小 | E46: 雀宮南小 | G46: 雀宮南小 | I46: 雀宮南小
B47: 会場担当 | C47: サウス宇都宮ＳＣ | E47: サウス宇都宮ＳＣ | G47: サウス宇都宮ＳＣ | I47: サウス宇都宮ＳＣ
B48: ① 9:00 | C48: １－２ | D48: 3/4/4 | E48: １－３ | F48: 6/8/8 | G48: ４－７ | H48: 5/8/8 | I48: ３－７ | J48: 4/8/8
B49: ② 9:40 | C49: ３－４ | D49: 1/2/2 | E49: ６－８ | F49: 1/3/3 | G49: ５－８ | H49: 4/7/7 | I49: ４－８ | J49: 3/7/7
B50: ③10:20 | C50: ５－６ | D50: 7/8/8 | E50: ２－４ | F50: 7/9/9 | G50: ６－９ | H50: 1/4/4 | I50: ５－９ | J50: 6/1/1
B51: ④11:00 | C51: ７－８ | D51: 5/6/6 | E51: 7－9 | F51: 2/4/4 | G51: １－４ | H51: 6/9/9 | I51: ６－１ | J51: 5/9/9
B52: ⑤11:40 | C52: ９－１ | D52: 2/3/3 | E52: ３－５ | F52: 8/1/1 | G52: ２－５ | H52: 3/6/6 | I52: ７－２ | J52: 8/3/3
B53: ⑥12:20 | C53: ２－３ | D53: 9/1/1 | E53: ８－１ | F53: 3/5/5 | G53: ３－６ | H53: 2/5/5 | I53: ８－３ | J53: 7/2/2
B54: ⑦13:00 | C54: ４－５ | D54: 6/7/7 | E54: ４－６ | F54: 9/2/2 | G54: ７－１ | H54: 8/2/2 | I54: ９－４ | J54: 1/5/5
B55: ⑧13:40 | C55: ６－７ | D55: 8/9/9 | E55: ９－２ | F55: 5/7/7 | G55: ８－２ | H55: 9/3/3 | I55: １－５ | J55: 2/6/6
B56: ⑨14:20 | C56: ８－９ | D56: 4/5/5 | E56: ５－７ | F56: 4/6/6 | G56: ９－３ | H56: 7/1/1 | I56: ２－６ | J56: 9/4/4

Sheet ●

Sheet 対戦表（Ａブロック）
A1: ＪＦＡ Ｕ-１０サッカーリーグ2018（in栃木） 宇河地域リーグ戦（後期）
Q4: Ａブロック 第１節 | AD4: 開 催 日 | AH4: 2018-09-02
Q5: 会場 | U5: 陽南小（Ａ）（Ｂ） | AD5: 会場担当 | AH5: 緑が丘ＹＦＣ
Q7: 1 | S7: ＳＵＧＡＯ ＳＣ | AE7: 6 | AG7: 上河内ＪＳＣ
Q8: 2 | S8: ＦＣアネーロ宇都宮 U10 | AE8: 7 | AG8: 清原ＳＳＳ
Q9: 3 | S9: ＦＣアリーバ | AE9: 8 | AG9: 緑が丘ＹＦＣ
Q10: 4 | S10: 雀宮ＦＣ | AE10: 9 | AG10: ＦＣペンサーレ
Q11: 5 | S11: ブラッドレスＳＳ | AE11: 10 | AG11: 富士見ＳＳＳ
B13: 【試合時間：１５分-５分-１５分】 | K13: 陽南小 Ａ会場 | AE13: 【試合時間：１５分-５分-１５分】 | AN13: 陽南小 Ｂ会場
C14: 試合開始 | F14: チーム名 | K14: スコア | R14: チーム名 | W14: 主審 | Y14: 副審 | AA14: 副審 | AF14: 試合開始 | AI14: チーム名 | AN14: スコア | AU14: チーム名 | AZ14: 主審 | BB14: 副審 | BD14: 副審
B15: 1 | C15: 09:00:00 | F15: =S9 -> ＦＣアリーバ | K15: =IF(OR(M15="",M16=""),"",M15+M16) -> 0 | M15: 0 | N15: － | O15: 0 | P15: =IF(OR(O15="",O16=""),"",O15+O16) -> 1 | R15: =AG8 -> 清原ＳＳＳ | W15: 8 | Y15: 2 | AA15: 2 | AE15: 1 | AF15: 09:00:00 | AI15: =AG11 -> 富士見ＳＳＳ | AN15: =IF(OR(AP15="",AP16=""),"",AP15+AP16) -> 0 | AP15: 0 | AQ15: － | AR15: 0 | AS15: =IF(OR(AR15="",AR16=""),"",AR15+AR16) -> 1 | AU15: =S10 -> 雀宮ＦＣ | AZ15: 1 | BB15: 5 | BD15: 5
M16: 0 | N16: － | O16: 1 | AP16: 0 | AQ16: － | AR16: 1
B17: 2 | C17: 09:40:00 | D17: 10:30:00 | F17: =AG9 -> 緑が丘ＹＦＣ | K17: =IF(OR(M17="",M18=""),"",M17+M18) -> 0 | M17: 0 | N17: － | O17: 0 | P17: =IF(OR(O17="",O18=""),"",O17+O18) -> 1 | R17: =S8 -> ＦＣアネーロ宇都宮 U10 | W17: 9 | Y17: 3 | AA17: 3 | AE17: 2 | AF17: 09:40:00 | AG17: 10:30:00 | AI17: =S7 -> ＳＵＧＡＯ ＳＣ | AN17: =IF(OR(AP17="",AP18=""),"",AP17+AP18) -> 1 | AP17: 0 | AQ17: － | AR17: 1 | AS17: =IF(OR(AR17="",AR18=""),"",AR17+AR18) -> 2 | AU17: =S11 -> ブラッドレスＳＳ | AZ17: 6 | BB17: 10 | BD17: 10
M18: 0 | N18: － | O18: 1 | AP18: 1 | AQ18: － | AR18: 1
B19: 3 | C19: 10:20:00 | F19: =AG10 -> ＦＣペンサーレ | K19: =IF(OR(M19="",M20=""),"",M19+M20) -> 2 | M19: 2 | N19: － | O19: 0 | P19: =IF(OR(O19="",O20=""),"",O19+O20) -> 0 | R19: =S9 -> ＦＣアリーバ | W19: 4 | Y19: 8 | AA19: 8 | AE19: 3 | AF19: 10:20:00 | AI19: =AG7 -> 上河内ＪＳＣ | AN19: =IF(OR(AP19="",AP20=""),"",AP19+AP20) -> 4 | AP19: 2 | AQ19: － | AR19: 2 | AS19: =IF(OR(AR19="",AR20=""),"",AR19+AR20) -> 3 | AU19: =AG11 -> 富士見ＳＳＳ | AZ19: 7 | BB19: 1 | BD19: 1
M20: 0 | N20: － | O20: 0 | AP20: 2 | AQ20: － | AR20: 1
B21: 4 | C21: 11:00:00 | D21: 10:30:00 | F21: =S10 -> 雀宮ＦＣ | K21: =IF(OR(M21="",M22=""),"",M21+M22) -> 1 | M21: 1 | N21: － | O21: 1 | P21: =IF(OR(O21="",O22=""),"",O21+O22) -> 1 | R21: =AG9 -> 緑が丘ＹＦＣ | W21: 5 | Y21: 9 | AA21: 9 | AE21: 4 | AF21: 11:00:00 | AG21: 10:30:00 | AI21: =AG8 -> 清原ＳＳＳ | AN21: =IF(OR(AP21="",AP22=""),"",AP21+AP22) -> 3 | AP21: 1 | AQ21: － | AR21: 2 | AS21: =IF(OR(AR21="",AR22=""),"",AR21+AR22) -> 4 | AU21: =S7 -> ＳＵＧＡＯ ＳＣ | AZ21: 2 | BB21: 6 | BD21: 6
M22: 0 | N22: － | O22: 0 | AP22: 2 | AQ22: － | AR22: 2
B23: 5 | C23: 11:40:00 | F23: =S11 -> ブラッドレスＳＳ | K23: =IF(OR(M23="",M24=""),"",M23+M24) -> 0 | M23: 0 | N23: － | O23: 0 | P23: =IF(OR(O23="",O24=""),"",O23+O24) -> 1 | R23: =AG10 -> ＦＣペンサーレ | W23: 3 | Y23: 7 | AA23: 7 | AE23: 5 | AF23: 11:40:00 | AI23: =S8 -> ＦＣアネーロ宇都宮 U10 | AN23: =IF(OR(AP23="",AP24=""),"",AP23+AP24) -> 4 | AP23: 2 | AQ23: － | AR23: 0 | AS23: =IF(OR(AR23="",AR24=""),"",AR23+AR24) -> 0 | AU23: =AG7 -> 上河内ＪＳＣ | AZ23: 10 | BB23: 4 | BD23: 4
M24: 0 | N24: － | O24: 1 | AP24: 2 | AQ24: － | AR24: 0
B26: 警告／退場 | H26: チーム名 | N26: 氏名 | U26: 番号 | W26: 理由 | AE26: 警告／退場 | AK26: チーム名 | AQ26: 氏名 | AX26: 番号 | AZ26: 理由
B27: 警告 退場 | AE27: 警告 退場 | AK27: ＳＵＧＡＯ ＳＣ | AQ27: 大関 優斗 | AX27: 16 | AZ27: バックチャージ
B28: 警告 退場 | AE28: 警告 退場
B29: 警告 退場 | AE29: 警告 退場
B30: 警告 退場 | AE30: 警告 退場
A31: ＪＦＡ Ｕ-１０サッカーリーグ2018（in栃木） 宇河地域リーグ戦（後期）
Q34: Ａブロック 第２節 | AD34: 開 催 日 | AH34: 2018-09-08
Q35: 会場 | U35: 陽南小（Ａ）（Ｂ） | AD35: 会場担当 | AH35: =$AH$5 -> 緑が丘ＹＦＣ
Q37: 1 | S37: =$S$7 -> ＳＵＧＡＯ ＳＣ | AE37: 6 | AG37: =$AG$7 -> 上河内ＪＳＣ
Q38: 2 | S38: =$S$8 -> ＦＣアネーロ宇都宮 U10 | AE38: 7 | AG38: =$AG$8 -> 清原ＳＳＳ
Q39: 3 | S39: =$S$9 -> ＦＣアリーバ | AE39: 8 | AG39: =$AG$9 -> 緑が丘ＹＦＣ
Q40: 4 | S40: =$S$10 -> 雀宮ＦＣ | AE40: 9 | AG40: =$AG$10 -> ＦＣペンサーレ
Q41: 5 | S41: =$S$11 -> ブラッドレスＳＳ | AE41: 10 | AG41: =$AG$11 -> 富士見ＳＳＳ
B43: 【試合時間：１５分-５分-１５分】 | K43: 陽南小 Ａ会場 | AE43: 【試合時間：１５分-５分-１５分】 | AN43: 陽南小 Ｂ会場
C44: 試合開始 | F44: チーム名 | K44: スコア | R44: チーム名 | W44: 主審 | Y44: 副審 | AA44: 副審 | AF44: 試合開始 | AI44: チーム名 | AN44: スコア | AU44: チーム名 | AZ44: 主審 | BB44: 副審 | BD44: 副審
B45: 1 | C45: 09:00:00 | F45: =S38 -> ＦＣアネーロ宇都宮 U10 | K45: =IF(OR(M45="",M46=""),"",M45+M46) -> 3 | M45: 2 | N45: － | O45: 0 | P45: =IF(OR(O45="",O46=""),"",O45+O46) -> 0 | R45: =S41 -> ブラッドレスＳＳ | W45: 8 | Y45: 1 | AA45: 1 | AE45: 1 | AF45: 09:00:00 | AI45: =AG37 -> 上河内ＪＳＣ | AN45: =IF(OR(AP45="",AP46=""),"",AP45+AP46) -> 3 | AP45: 2 | AQ45: － | AR45: 0 | AS45: =IF(OR(AR45="",AR46=""),"",AR45+AR46) -> 0 | AU45: =AG40 -> ＦＣペンサーレ | AZ45: 4 | BB45: 7 | BD45: 7
M46: 1 | N46: － | O46: 0 | AP46: 1 | AQ46: － | AR46: 0
B47: 2 | C47: 09:40:00 | D47: 10:30:00 | F47: =AG39 -> 緑が丘ＹＦＣ | K47: =IF(OR(M47="",M48=""),"",M47+M48) -> 3 | M47: 2 | N47: － | O47: 0 | P47: =IF(OR(O47="",O48=""),"",O47+O48) -> 1 | R47: =S37 -> ＳＵＧＡＯ ＳＣ | W47: 2 | Y47: 5 | AA47: 5 | AE47: 2 | AF47: 09:40:00 | AG47: 10:30:00 | AI47: =S40 -> 雀宮ＦＣ | AN47: =IF(OR(AP47="",AP48=""),"",AP47+AP48) -> 0 | AP47: 0 | AQ47: － | AR47: 0 | AS47: =IF(OR(AR47="",AR48=""),"",AR47+AR48) -> 1 | AU47: =AG38 -> 清原ＳＳＳ | AZ47: 6 | BB47: 9 | BD47: 9
M48: 1 | N48: － | O48: 1 | AP48: 0 | AQ48: － | AR48: 1
B49: 3 | C49: 10:20:00 | F49: =S39 -> ＦＣアリーバ | K49: =IF(OR(M49="",M50=""),"",M49+M50) -> 1 | M49: 0 | N49: － | O49: 1 | P49: =IF(OR(O49="",O50=""),"",O49+O50) -> 2 | R49: =AG37 -> 上河内ＪＳＣ | W49: 1 | Y49: 4 | AA49: 4 | AE49: 3 | AF49: 10:20:00 | AI49: =AG40 -> ＦＣペンサーレ | AN49: =IF(OR(AP49="",AP50=""),"",AP49+AP50) -> 0 | AP49: 0 | AQ49: － | AR49: 2 | AS49: =IF(OR(AR49="",AR50=""),"",AR49+AR50) -> 4 | AU49: =S38 -> ＦＣアネーロ宇都宮 U10 | AZ49: 5 | BB49: 8 | BD49: 8
M50: 1 | N50: － | O50: 1 | AP50: 0 | AQ50: － | AR50: 2
B51: 4 | C51: 11:00:00 | D51: 10:30:00 | F51: =S37 -> ＳＵＧＡＯ ＳＣ | K51: =IF(OR(M51="",M52=""),"",M51+M52) -> 3 | M51: 2 | N51: － | O51: 0 | P51: =IF(OR(O51="",O52=""),"",O51+O52) -> 1 | R51: =S40 -> 雀宮ＦＣ | W51: 3 | Y51: 6 | AA51: 6 | AE51: 4 | AF51: 11:00:00 | AG51: 10:30:00 | AI51: =S41 -> ブラッドレスＳＳ | AN51: =IF(OR(AP51="",AP52=""),"",AP51+AP52) -> 0 | AP51: 0 | AQ51: － | AR51: 1 | AS51: =IF(OR(AR51="",AR52=""),"",AR51+AR52) -> 2 | AU51: =AG39 -> 緑が丘ＹＦＣ | AZ51: 9 | BB51: 2 | BD51: 2
M52: 1 | N52: － | O52: 1 | AP52: 0 | AQ52: － | AR52: 1
B53: 5 | C53: 11:40:00 | F53: =AG38 -> 清原ＳＳＳ | K53: =IF(OR(M53="",M54=""),"",M53+M54) ->  | N53: － | P53: =IF(OR(O53="",O54=""),"",O53+O54) ->  | R53: =S39 -> ＦＣアリーバ | W53: フレンドリー (当該チーム) | AE53: 5 | AF53: 11:40:00 | AN53: =IF(OR(AP53="",AP54=""),"",AP53+AP54) ->  | AQ53: － | AS53: =IF(OR(AR53="",AR54=""),"",AR53+AR54) -> 
N54: － | AQ54: －
B56: 警告／退場 | H56: チーム名 | N56: 氏名 | U56: 番号 | W56: 理由 | AE56: 警告／退場 | AK56: チーム名 | AQ56: 氏名 | AX56: 番号 | AZ56: 理由
B57: 警告 退場 | AE57: 警告 退場
B58: 警告 退場 | AE58: 警告 退場
B59: 警告 退場 | AE59: 警告 退場
B60: 警告 退場 | AE60: 警告 退場
A61: ＪＦＡ Ｕ-１０サッカーリーグ2018（in栃木） 宇河地域リーグ戦（後期）
C63: Ａブロック 第３節 | P63: 開 催 日 | T63: 2018-09-09
C64: 会場 | G64: 清原東小 | P64: 会場担当 | T64: 清原ＳＳＳ
C66: 1 | E66: =$S$7 -> ＳＵＧＡＯ ＳＣ | Q66: 6 | S66: =$AG$7 -> 上河内ＪＳＣ
C67: 2 | E67: =$S$8 -> ＦＣアネーロ宇都宮 U10 | Q67: 7 | S67: =$AG$8 -> 清原ＳＳＳ
C68: 3 | E68: =$S$9 -> ＦＣアリーバ | Q68: 8 | S68: =$AG$9 -> 緑が丘ＹＦＣ
C69: 4 | E69: =$S$10 -> 雀宮ＦＣ | Q69: 9 | S69: =$AG$10 -> ＦＣペンサーレ
C70: 5 | E70: =$S$11 -> ブラッドレスＳＳ | Q70: 10 | S70: =$AG$11 -> 富士見ＳＳＳ
B72: 【試合時間：15分-５分-15分】
C73: 試合開始 | F73: チーム名 | K73: 得点 | R73: チーム名 | W73: 主審 | Y73: 副審 | AA73: 副審
B74: 1 | C74: 09:00:00 | F74: =S70 -> 富士見ＳＳＳ | K74: =IF(OR(M74="",M75=""),"",M74+M75) -> 1 | M74: 1 | N74: － | O74: 0 | P74: =IF(OR(O74="",O75=""),"",O74+O75) -> 1 | R74: =E68 -> ＦＣアリーバ | W74: 1 | Y74: 6 | AA74: 6
M75: 0 | N75: － | O75: 1
B76: 2 | C76: 09:40:00 | D76: 10:30:00 | F76: =E66 -> ＳＵＧＡＯ ＳＣ | K76: =IF(OR(M76="",M77=""),"",M76+M77) -> 1 | M76: 0 | N76: － | O76: 1 | P76: =IF(OR(O76="",O77=""),"",O76+O77) -> 2 | R76: =S66 -> 上河内ＪＳＣ | W76: 2 | Y76: 7 | AA76: 7
M77: 1 | N77: － | O77: 1
B78: 3 | C78: 10:20:00 | F78: =E67 -> ＦＣアネーロ宇都宮 U10 | K78: =IF(OR(M78="",M79=""),"",M78+M79) -> 4 | M78: 2 | N78: － | O78: 0 | P78: =IF(OR(O78="",O79=""),"",O78+O79) -> 2 | R78: =S67 -> 清原ＳＳＳ | W78: 10 | Y78: 3 | AA78: 3
M79: 2 | N79: － | O79: 2
B80: 4 | C80: 11:00:00 | D80: 10:30:00 | F80: =E68 -> ＦＣアリーバ | K80: =IF(OR(M80="",M81=""),"",M80+M81) -> 0 | M80: 0 | N80: － | O80: 0 | P80: =IF(OR(O80="",O81=""),"",O80+O81) -> 1 | R80: =S68 -> 緑が丘ＹＦＣ | W80: 7 | Y80: 10 | AA80: 10
M81: 0 | N81: － | O81: 1
B82: 5 | C82: 11:40:00 | F82: =S67 -> 清原ＳＳＳ | K82: =IF(OR(M82="",M83=""),"",M82+M83) -> 0 | M82: 0 | N82: － | O82: 0 | P82: =IF(OR(O82="",O83=""),"",O82+O83) -> 1 | R82: =S70 -> 富士見ＳＳＳ | W82: 3 | Y82: 8 | AA82: 8
M83: 0 | N83: － | O83: 1
B84: 6 | C84: 12:20:00 | F84: =E69 -> 雀宮ＦＣ | K84: =IF(OR(M84="",M85=""),"",M84+M85) -> 1 | M84: 1 | N84: － | O84: 0 | P84: =IF(OR(O84="",O85=""),"",O84+O85) -> 0 | R84: =S69 -> ＦＣペンサーレ | W84: 5 | Y84: 10 | AA84: 10
M85: 0 | N85: － | O85: 0
B86: 7 | C86: 13:00:00 | F86: =E70 -> ブラッドレスＳＳ | K86: =IF(OR(M86="",M87=""),"",M86+M87) -> 0 | M86: 0 | N86: － | O86: 0 | P86: =IF(OR(O86="",O87=""),"",O86+O87) -> 4 | R86: =S70 -> 富士見ＳＳＳ | W86: 4 | Y86: 9 | AA86: 9
M87: 0 | N87: － | O87: 4
B89: 警告／退場 | H89: チーム名 | N89: 氏名 | U89: 番号 | W89: 理由
B90: 警告 退場
B91: 警告 退場
B92: 警告 退場
B93: 警告 退場
A94: ＪＦＡ Ｕ-１０サッカーリーグ2018（in栃木） 宇河地域リーグ戦（後期）
Q97: Ａブロック 第４節 | AD97: 開 催 日 | AH97: 2018-09-17
Q98: 会場 | U98: 陽南小（Ａ）（Ｂ） | AD98: 会場担当 | AH98: =$AH$5 -> 緑が丘ＹＦＣ
Q100: 1 | S100: =$S$7 -> ＳＵＧＡＯ ＳＣ | AE100: 6 | AG100: =$AG$7 -> 上河内ＪＳＣ
Q101: 2 | S101: =$S$8 -> ＦＣアネーロ宇都宮 U10 | AE101: 7 | AG101: =$AG$8 -> 清原ＳＳＳ
Q102: 3 | S102: =$S$9 -> ＦＣアリーバ | AE102: 8 | AG102: =$AG$9 -> 緑が丘ＹＦＣ
Q103: 4 | S103: =$S$10 -> 雀宮ＦＣ | AE103: 9 | AG103: =$AG$10 -> ＦＣペンサーレ
Q104: 5 | S104: =$S$11 -> ブラッドレスＳＳ | AE104: 10 | AG104: =$AG$11 -> 富士見ＳＳＳ
B106: 【試合時間：１５分-５分-１５分】 | K106: 陽南小 Ａ会場 | AE106: 【試合時間：１５分-５分-１５分】 | AN106: 陽南小 Ｂ会場
C107: 試合開始 | F107: チーム名 | K107: スコア | R107: チーム名 | W107: 主審 | Y107: 副審 | AA107: 副審 | AF107: 試合開始 | AI107: チーム名 | AN107: スコア | AU107: チーム名 | AZ107: 主審 | BB107: 副審 | BD107: 副審
B108: 1 | C108: 09:00:00 | F108: =S101 -> ＦＣアネーロ宇都宮 U10 | K108: =IF(OR(M108="",M109=""),"",M108+M109) -> 3 | M108: 3 | N108: － | O108: 0 | P108: =IF(OR(O108="",O109=""),"",O108+O109) -> 0 | R108: =S103 -> 雀宮ＦＣ | W108: 8 | Y108: 10 | AA108: 10 | AE108: 1 | AF108: 09:00:00 | AI108: =S104 -> ブラッドレスＳＳ | AN108: =IF(OR(AP108="",AP109=""),"",AP108+AP109) -> 0 | AP108: 0 | AQ108: － | AR108: 0 | AS108: =IF(OR(AR108="",AR109=""),"",AR108+AR109) -> 0 | AU108: =AG101 -> 清原ＳＳＳ | AZ108: 1 | BB108: 3 | BD108: 3
M109: 0 | N109: － | O109: 0 | AP109: 0 | AQ109: － | AR109: 0
B110: 2 | C110: 09:40:00 | D110: 10:30:00 | F110: =AG102 -> 緑が丘ＹＦＣ | K110: =IF(OR(M110="",M111=""),"",M110+M111) -> 1 | M110: 1 | N110: － | O110: 0 | P110: =IF(OR(O110="",O111=""),"",O110+O111) -> 0 | R110: =AG104 -> 富士見ＳＳＳ | W110: 4 | Y110: 6 | AA110: 6 | AE110: 2 | AF110: 09:40:00 | AG110: 10:30:00 | AI110: =S100 -> ＳＵＧＡＯ ＳＣ | AN110: =IF(OR(AP110="",AP111=""),"",AP110+AP111) -> 0 | AP110: 0 | AQ110: － | AR110: 1 | AS110: =IF(OR(AR110="",AR111=""),"",AR110+AR111) -> 1 | AU110: =S102 -> ＦＣアリーバ | AZ110: 7 | BB110: 9 | BD110: 9
M111: 0 | N111: － | O111: 0 | AP111: 0 | AQ111: － | AR111: 0
B112: 3 | C112: 10:20:00 | F112: =S103 -> 雀宮ＦＣ | K112: =IF(OR(M112="",M113=""),"",M112+M113) -> 2 | M112: 1 | N112: － | O112: 0 | P112: =IF(OR(O112="",O113=""),"",O112+O113) -> 1 | R112: =AG100 -> 上河内ＪＳＣ | W112: 10 | Y112: 2 | AA112: 2 | AE112: 3 | AF112: 10:20:00 | AI112: =AG101 -> 清原ＳＳＳ | AN112: =IF(OR(AP112="",AP113=""),"",AP112+AP113) -> 1 | AP112: 0 | AQ112: － | AR112: 2 | AS112: =IF(OR(AR112="",AR113=""),"",AR112+AR113) -> 2 | AU112: =AG103 -> ＦＣペンサーレ | AZ112: 3 | BB112: 5 | BD112: 5
M113: 1 | N113: － | O113: 1 | AP113: 1 | AQ113: － | AR113: 0
B114: 4 | C114: 11:00:00 | D114: 10:30:00 | F114: =AG104 -> 富士見ＳＳＳ | K114: =IF(OR(M114="",M115=""),"",M114+M115) -> 0 | M114: 0 | N114: － | O114: 1 | P114: =IF(OR(O114="",O115=""),"",O114+O115) -> 3 | R114: =S101 -> ＦＣアネーロ宇都宮 U10 | W114: 6 | Y114: 8 | AA114: 8 | AE114: 4 | AF114: 11:00:00 | AG114: 10:30:00 | AI114: =S102 -> ＦＣアリーバ | AN114: =IF(OR(AP114="",AP115=""),"",AP114+AP115) -> 1 | AP114: 0 | AQ114: － | AR114: 0 | AS114: =IF(OR(AR114="",AR115=""),"",AR114+AR115) -> 0 | AU114: =S104 -> ブラッドレスＳＳ | AZ114: 9 | BB114: 1 | BD114: 1
M115: 0 | N115: － | O115: 2 | AP115: 1 | AQ115: － | AR115: 0
B116: 5 | C116: 11:40:00 | F116: =AG100 -> 上河内ＪＳＣ | K116: =IF(OR(M116="",M117=""),"",M116+M117) -> 1 | M116: 0 | N116: － | O116: 1 | P116: =IF(OR(O116="",O117=""),"",O116+O117) -> 3 | R116: =AG102 -> 緑が丘ＹＦＣ | W116: 2 | Y116: 4 | AA116: 4 | AE116: 5 | AF116: 11:40:00 | AI116: =AG103 -> ＦＣペンサーレ | AN116: =IF(OR(AP116="",AP117=""),"",AP116+AP117) -> 0 | AP116: 0 | AQ116: － | AR116: 2 | AS116: =IF(OR(AR116="",AR117=""),"",AR116+AR117) -> 3 | AU116: =S100 -> ＳＵＧＡＯ ＳＣ | AZ116: 5 | BB116: 7 | BD116: 7
M117: 1 | N117: － | O117: 2 | AP117: 0 | AQ117: － | AR117: 1
B119: 警告／退場 | H119: チーム名 | N119: 氏名 | U119: 番号 | W119: 理由 | AE119: 警告／退場 | AK119: チーム名 | AQ119: 氏名 | AX119: 番号 | AZ119: 理由
B120: 警告 退場 | AE120: 警告 退場
B121: 警告 退場 | AE121: 警告 退場
B122: 警告 退場 | AE122: 警告 退場
B123: 警告 退場 | AE123: 警告 退場
A124: ＪＦＡ Ｕ-１０サッカーリーグ2018（in栃木） 宇河地域リーグ戦（後期）
Q127: Ａブロック 第５節 | AD127: 開 催 日 | AH127: 2018-09-23
Q128: 会場 | U128: 陽南小（Ａ）（Ｂ） | AD128: 会場担当 | AH128: =$AH$5 -> 緑が丘ＹＦＣ
Q130: 1 | S130: =$S$7 -> ＳＵＧＡＯ ＳＣ | AE130: 6 | AG130: =$AG$7 -> 上河内ＪＳＣ
Q131: 2 | S131: =$S$8 -> ＦＣアネーロ宇都宮 U10 | AE131: 7 | AG131: =$AG$8 -> 清原ＳＳＳ
Q132: 3 | S132: =$S$9 -> ＦＣアリーバ | AE132: 8 | AG132: =$AG$9 -> 緑が丘ＹＦＣ
Q133: 4 | S133: =$S$10 -> 雀宮ＦＣ | AE133: 9 | AG133: =$AG$10 -> ＦＣペンサーレ
Q134: 5 | S134: =$S$11 -> ブラッドレスＳＳ | AE134: 10 | AG134: =$AG$11 -> 富士見ＳＳＳ
B136: 【試合時間：１５分-５分-１５分】 | K136: 陽南小 Ａ会場 | AE136: 【試合時間：１５分-５分-１５分】 | AN136: 陽南小 Ｂ会場
C137: 試合開始 | F137: チーム名 | K137: スコア | R137: チーム名 | W137: 主審 | Y137: 副審 | AA137: 副審 | AF137: 試合開始 | AI137: チーム名 | AN137: スコア | AU137: チーム名 | AZ137: 主審 | BB137: 副審 | BD137: 副審
B138: 1 | C138: 09:00:00 | F138: =S130 -> ＳＵＧＡＯ ＳＣ | K138: =IF(OR(M138="",M139=""),"",M138+M139) -> 0 | M138: 0 | N138: － | O138: 2 | P138: =IF(OR(O138="",O139=""),"",O138+O139) -> 2 | R138: =S131 -> ＦＣアネーロ宇都宮 U10 | W138: 5 | Y138: 6 | AA138: 6 | AE138: 1 | AF138: 09:00:00 | AI138: =S132 -> ＦＣアリーバ | AN138: =IF(OR(AP138="",AP139=""),"",AP138+AP139) -> 0 | AP138: 0 | AQ138: － | AR138: 0 | AS138: =IF(OR(AR138="",AR139=""),"",AR138+AR139) -> 1 | AU138: =S133 -> 雀宮ＦＣ | AZ138: 7 | BB138: 8 | BD138: 8
M139: 0 | N139: － | O139: 0 | AP139: 0 | AQ139: － | AR139: 1
B140: 2 | C140: 09:40:00 | D140: 10:30:00 | F140: =S134 -> ブラッドレスＳＳ | K140: =IF(OR(M140="",M141=""),"",M140+M141) -> 1 | M140: 0 | N140: － | O140: 1 | P140: =IF(OR(O140="",O141=""),"",O140+O141) -> 1 | R140: =AG130 -> 上河内ＪＳＣ | W140: 9 | Y140: 10 | AA140: 10 | AE140: 2 | AF140: 09:40:00 | AG140: 10:30:00 | AI140: =AG131 -> 清原ＳＳＳ | AN140: =IF(OR(AP140="",AP141=""),"",AP140+AP141) -> 1 | AP140: 1 | AQ140: － | AR140: 0 | AS140: =IF(OR(AR140="",AR141=""),"",AR140+AR141) -> 0 | AU140: =AG132 -> 緑が丘ＹＦＣ | AZ140: 2 | BB140: 3 | BD140: 3
M141: 1 | N141: － | O141: 0 | AP141: 0 | AQ141: － | AR141: 0
B142: 3 | C142: 10:20:00 | F142: =AG133 -> ＦＣペンサーレ | K142: =IF(OR(M142="",M143=""),"",M142+M143) -> 0 | M142: 0 | N142: － | O142: 0 | P142: =IF(OR(O142="",O143=""),"",O142+O143) -> 0 | R142: =AG134 -> 富士見ＳＳＳ | W142: 4 | Y142: 5 | AA142: 5 | AE142: 3 | AF142: 10:20:00 | AI142: =S131 -> ＦＣアネーロ宇都宮 U10 | AN142: =IF(OR(AP142="",AP143=""),"",AP142+AP143) -> 8 | AP142: 5 | AQ142: － | AR142: 0 | AS142: =IF(OR(AR142="",AR143=""),"",AR142+AR143) -> 0 | AU142: =S132 -> ＦＣアリーバ | AZ142: 1 | BB142: 7 | BD142: 7
M143: 0 | N143: － | O143: 0 | AP143: 3 | AQ143: － | AR143: 0
B144: 4 | C144: 11:00:00 | D144: 10:30:00 | F144: =S133 -> 雀宮ＦＣ | K144: =IF(OR(M144="",M145=""),"",M144+M145) -> 2 | M144: 1 | N144: － | O144: 0 | P144: =IF(OR(O144="",O145=""),"",O144+O145) -> 0 | R144: =S134 -> ブラッドレスＳＳ | W144: 8 | Y144: 9 | AA144: 9 | AE144: 4 | AF144: 11:00:00 | AG144: 10:30:00 | AI144: =AG130 -> 上河内ＪＳＣ | AN144: =IF(OR(AP144="",AP145=""),"",AP144+AP145) -> 1 | AP144: 1 | AQ144: － | AR144: 1 | AS144: =IF(OR(AR144="",AR145=""),"",AR144+AR145) -> 3 | AU144: =AG131 -> 清原ＳＳＳ | AZ144: 10 | BB144: 1 | BD144: 1
M145: 1 | N145: － | O145: 0 | AP145: 0 | AQ145: － | AR145: 2
B146: 5 | C146: 11:40:00 | F146: =AG132 -> 緑が丘ＹＦＣ | K146: =IF(OR(M146="",M147=""),"",M146+M147) -> 5 | M146: 1 | N146: － | O146: 1 | P146: =IF(OR(O146="",O147=""),"",O146+O147) -> 1 | R146: =AG133 -> ＦＣペンサーレ | W146: 6 | Y146: 2 | AA146: 2 | AE146: 5 | AF146: 11:40:00 | AI146: =AG134 -> 富士見ＳＳＳ | AN146: =IF(OR(AP146="",AP147=""),"",AP146+AP147) -> 1 | AP146: 0 | AQ146: － | AR146: 1 | AS146: =IF(OR(AR146="",AR147=""),"",AR146+AR147) -> 2 | AU146: =S130 -> ＳＵＧＡＯ ＳＣ | AZ146: 3 | BB146: 4 | BD146: 4
M147: 4 | N147: － | O147: 0 | AP147: 1 | AQ147: － | AR147: 1
B149: 警告／退場 | H149: チーム名 | N149: 氏名 | U149: 番号 | W149: 理由 | AE149: 警告／退場 | AK149: チーム名 | AQ149: 氏名 | AX149: 番号 | AZ149: 理由
B150: 警告 退場 | H150: 上河内ＪＳＣ | N150: 高城 瑛太 | U150: 17 | W150: 得点機会時の故意のﾊﾝﾄﾞ | AE150: 警告 退場
B151: 警告 退場 | AE151: 警告 退場
B152: 警告 退場 | AE152: 警告 退場
B153: 警告 退場 | AE153: 警告 退場

Sheet 対戦表（Bブロック）
C4: 会場 | G4: 陽東小学校 | P4: 会場担当 | T4: 陽東ＳＳＳ | AC4: 開催日 | AG4: 2018-09-02
C6: 1 | E6: 陽東ＳＳＳ | Q6: 4 | S6: 石井ＦＣ | AE6: 7 | AG6: ＦＣブロケード
C7: 2 | E7: 姿川第一ＦＣ | Q7: 5 | S7: シャルムグランツＳＣ | AE7: 8 | AG7: 栃木ＳＣジュニア
C8: 3 | E8: 豊郷ＪＦＣ宇都宮 | Q8: 6 | S8: ｕｎｉｏｎ ｓｃ | AE8: 9 | AG8: 国本ＪＳＣ
B10: 【監督会議：8時20分】【試合時間：15分-3分-15分】【クーリングブレイク：試合当日監督会議内にて決定する】
C11: 試合開始 | F11: 代表者サイン | J11: チーム名 | Q11: 得点 | X11: チーム名 | AE11: 代表者サイン | AI11: 主審 | AK11: 副審 | AM11: 副審 | AO11: ４審
B12: 1 | C12: 09:00:00 | J12: =E6 -> 陽東ＳＳＳ | Q12: =IF(OR(S12="",S13=""),"",S12+S13) -> 0 | S12: 0 | T12: － | U12: 3 | V12: =IF(OR(U12="",U13=""),"",U12+U13) -> 4 | X12: =E7 -> 姿川第一ＦＣ | AI12: 3 | AK12: 4 | AM12: =AK12 -> 4 | AO12: -
S13: 0 | T13: － | U13: 1
B14: 2 | C14: 09:40:00 | D14: 10:30:00 | J14: =E8 -> 豊郷ＪＦＣ宇都宮 | Q14: =IF(OR(S14="",S15=""),"",S14+S15) -> 1 | S14: 1 | T14: － | U14: 1 | V14: =IF(OR(U14="",U15=""),"",U14+U15) -> 2 | X14: =S6 -> 石井ＦＣ | AI14: 1 | AK14: 2 | AM14: =AK14 -> 2 | AO14: -
S15: 0 | T15: － | U15: 1
B16: 3 | C16: 10:20:00 | J16: =S7 -> シャルムグランツＳＣ | Q16: =IF(OR(S16="",S17=""),"",S16+S17) -> 0 | S16: 0 | T16: － | U16: 2 | V16: =IF(OR(U16="",U17=""),"",U16+U17) -> 6 | X16: =S8 -> ｕｎｉｏｎ ｓｃ | AI16: 7 | AK16: 8 | AM16: =AK16 -> 8 | AO16: -
S17: 0 | T17: － | U17: 4
B18: 4 | C18: 11:00:00 | D18: 10:30:00 | J18: =AG6 -> ＦＣブロケード | Q18: =IF(OR(S18="",S19=""),"",S18+S19) -> 0 | S18: 0 | T18: － | U18: 3 | V18: =IF(OR(U18="",U19=""),"",U18+U19) -> 5 | X18: =AG7 -> 栃木ＳＣジュニア | AI18: 5 | AK18: 6 | AM18: =AK18 -> 6 | AO18: -
S19: 0 | T19: － | U19: 2
B20: 5 | C20: 11:40:00 | J20: =E6 -> 陽東ＳＳＳ | Q20: =IF(OR(S20="",S21=""),"",S20+S21) -> 1 | S20: 1 | T20: － | U20: 1 | V20: =IF(OR(U20="",U21=""),"",U20+U21) -> 6 | X20: =AG8 -> 国本ＪＳＣ | AI20: 2 | AK20: 3 | AM20: =AK20 -> 3 | AO20: -
S21: 0 | T21: － | U21: 5
B22: 6 | C22: 12:20:00 | J22: =E7 -> 姿川第一ＦＣ | Q22: =IF(OR(S22="",S23=""),"",S22+S23) -> 0 | S22: 0 | T22: － | U22: 1 | V22: =IF(OR(U22="",U23=""),"",U22+U23) -> 3 | X22: =E8 -> 豊郷ＪＦＣ宇都宮 | AI22: 9 | AK22: 1 | AM22: =AK22 -> 1 | AO22: -
S23: 0 | T23: － | U23: 2
B24: 7 | C24: 13:00:00 | J24: =S6 -> 石井ＦＣ | Q24: =IF(OR(S24="",S25=""),"",S24+S25) -> 2 | S24: 0 | T24: － | U24: 0 | V24: =IF(OR(U24="",U25=""),"",U24+U25) -> 0 | X24: =S7 -> シャルムグランツＳＣ | AI24: 6 | AK24: 7 | AM24: =AK24 -> 7 | AO24: -
S25: 2 | T25: － | U25: 0
B26: 8 | C26: 13:40:00 | D26: 10:30:00 | J26: =S8 -> ｕｎｉｏｎ ｓｃ | Q26: =IF(OR(S26="",S27=""),"",S26+S27) -> 5 | S26: 2 | T26: － | U26: 0 | V26: =IF(OR(U26="",U27=""),"",U26+U27) -> 0 | X26: =AG6 -> ＦＣブロケード | AI26: 8 | AK26: 9 | AM26: =AK26 -> 9 | AO26: -
S27: 3 | T27: － | U27: 0
B28: 9 | C28: 14:20:00 | D28: 10:30:00 | J28: =AG7 -> 栃木ＳＣジュニア | Q28: =IF(OR(S28="",S29=""),"",S28+S29) -> 1 | S28: 0 | T28: － | U28: 0 | V28: =IF(OR(U28="",U29=""),"",U28+U29) -> 1 | X28: =AG8 -> 国本ＪＳＣ | AI28: 4 | AK28: 5 | AM28: =AK28 -> 5 | AO28: -
S29: 1 | T29: － | U29: 1
D31: 警告／退場 | J31: チーム名 | R31: 氏名 | AA31: 番号 | AD31: 理由
D32: 警告 退場 | J32: 栃木ＳＣジュニア | R32: 五月女 雄平 | AA32: 32 | AD32: キーパーに対する威嚇行為
D33: 警告 退場 | J33: 栃木ＳＣジュニア | R33: 濱田 空輝 | AA33: 33 | AD33: キーパーに対する飛び蹴り
D34: 警告 退場
C38: 会場 | G38: 陽東小学校 | P38: 会場担当 | T38: 陽東ＳＳＳ | AC38: 開催日 | AG38: 2018-09-08
C40: 1 | E40: =$E$6 -> 陽東ＳＳＳ | Q40: 4 | S40: =$S$6 -> 石井ＦＣ | AE40: 7 | AG40: =$AG$6 -> ＦＣブロケード
C41: 2 | E41: =$E$7 -> 姿川第一ＦＣ | Q41: 5 | S41: =$S$7 -> シャルムグランツＳＣ | AE41: 8 | AG41: =$AG$7 -> 栃木ＳＣジュニア
C42: 3 | E42: =$E$8 -> 豊郷ＪＦＣ宇都宮 | Q42: 6 | S42: =$S$8 -> ｕｎｉｏｎ ｓｃ | AE42: 9 | AG42: =$AG$8 -> 国本ＪＳＣ
B44: 【監督会議：8時20分】【試合時間：15分-3分-15分】
C45: 試合開始 | F45: 代表者サイン | J45: チーム名 | Q45: 得点 | X45: チーム名 | AE45: 代表者サイン | AI45: 主審 | AK45: 副審 | AM45: 副審 | AO45: ４審
B46: 1 | C46: 09:00:00 | J46: =E40 -> 陽東ＳＳＳ | Q46: =IF(OR(S46="",S47=""),"",S46+S47) -> 0 | S46: 0 | T46: － | U46: 3 | V46: =IF(OR(U46="",U47=""),"",U46+U47) -> 3 | X46: =E42 -> 豊郷ＪＦＣ宇都宮 | AI46: 6 | AK46: 8 | AM46: =AK46 -> 8 | AO46: -
S47: 0 | T47: － | U47: 0
B48: 2 | C48: 09:40:00 | D48: 10:30:00 | J48: =S42 -> ｕｎｉｏｎ ｓｃ | Q48: =IF(OR(S48="",S49=""),"",S48+S49) -> 0 | S48: 0 | T48: － | U48: 3 | V48: =IF(OR(U48="",U49=""),"",U48+U49) -> 8 | X48: =AG41 -> 栃木ＳＣジュニア | AI48: 1 | AK48: 3 | AM48: =AK48 -> 3 | AO48: -
S49: 0 | T49: － | U49: 5
B50: 3 | C50: 10:20:00 | J50: =E41 -> 姿川第一ＦＣ | Q50: =IF(OR(S50="",S51=""),"",S50+S51) -> 1 | S50: 0 | T50: － | U50: 0 | V50: =IF(OR(U50="",U51=""),"",U50+U51) -> 1 | X50: =S40 -> 石井ＦＣ | AI50: 7 | AK50: 9 | AM50: =AK50 -> 9 | AO50: -
S51: 1 | T51: － | U51: 1
B52: 4 | C52: 11:00:00 | D52: 10:30:00 | J52: =AG40 -> ＦＣブロケード | Q52: =IF(OR(S52="",S53=""),"",S52+S53) -> 0 | S52: 0 | T52: － | U52: 4 | V52: =IF(OR(U52="",U53=""),"",U52+U53) -> 6 | X52: =AG42 -> 国本ＪＳＣ | AI52: 2 | AK52: 4 | AM52: =AK52 -> 4 | AO52: -
S53: 0 | T53: － | U53: 2
B54: 5 | C54: 11:40:00 | J54: =E42 -> 豊郷ＪＦＣ宇都宮 | Q54: =IF(OR(S54="",S55=""),"",S54+S55) -> 4 | S54: 2 | T54: － | U54: 0 | V54: =IF(OR(U54="",U55=""),"",U54+U55) -> 0 | X54: =S41 -> シャルムグランツＳＣ | AI54: 8 | AK54: 1 | AM54: =AK54 -> 1 | AO54: -
S55: 2 | T55: － | U55: 0
B56: 6 | C56: 12:20:00 | J56: =E40 -> 陽東ＳＳＳ | Q56: =IF(OR(S56="",S57=""),"",S56+S57) -> 0 | S56: 0 | T56: － | U56: 8 | V56: =IF(OR(U56="",U57=""),"",U56+U57) -> 11 | X56: =AG41 -> 栃木ＳＣジュニア | AI56: 3 | AK56: 5 | AM56: =AK56 -> 5 | AO56: -
S57: 0 | T57: － | U57: 3
B58: 7 | C58: 13:00:00 | J58: =S40 -> 石井ＦＣ | Q58: =IF(OR(S58="",S59=""),"",S58+S59) -> 1 | S58: 0 | T58: － | U58: 2 | V58: =IF(OR(U58="",U59=""),"",U58+U59) -> 3 | X58: =S42 -> ｕｎｉｏｎ ｓｃ | AI58: 9 | AK58: 2 | AM58: =AK58 -> 2 | AO58: -
S59: 1 | T59: － | U59: 1
B60: 8 | C60: 13:40:00 | D60: 10:30:00 | J60: =E41 -> 姿川第一ＦＣ | Q60: =IF(OR(S60="",S61=""),"",S60+S61) -> 0 | S60: 0 | T60: － | U60: 5 | V60: =IF(OR(U60="",U61=""),"",U60+U61) -> 6 | X60: =AG42 -> 国本ＪＳＣ | AI60: 5 | AK60: 7 | AM60: =AK60 -> 7 | AO60: -
S61: 0 | T61: － | U61: 1
B62: 9 | C62: 14:20:00 | D62: 10:30:00 | J62: =S41 -> シャルムグランツＳＣ | Q62: =IF(OR(S62="",S63=""),"",S62+S63) -> 0 | S62: 0 | T62: － | U62: 1 | V62: =IF(OR(U62="",U63=""),"",U62+U63) -> 1 | X62: =AG40 -> ＦＣブロケード | AI62: 4 | AK62: 6 | AM62: =AK62 -> 6 | AO62: -
S63: 0 | T63: － | U63: 0
D65: 警告／退場 | J65: チーム名 | R65: 氏名 | AA65: 番号 | AD65: 理由
D66: 警告 退場
D67: 警告 退場
D68: 警告 退場
C72: 会場 | G72: 豊郷北小小学校 | P72: 会場担当 | T72: 豊郷ＪＦＣ宇都宮 | AC72: 開催日 | AG72: 2018-09-09
C74: 1 | E74: =$E$6 -> 陽東ＳＳＳ | Q74: 4 | S74: =$S$6 -> 石井ＦＣ | AE74: 7 | AG74: =$AG$6 -> ＦＣブロケード
C75: 2 | E75: =$E$7 -> 姿川第一ＦＣ | Q75: 5 | S75: =$S$7 -> シャルムグランツＳＣ | AE75: 8 | AG75: =$AG$7 -> 栃木ＳＣジュニア
C76: 3 | E76: =$E$8 -> 豊郷ＪＦＣ宇都宮 | Q76: 6 | S76: =$S$8 -> ｕｎｉｏｎ ｓｃ | AE76: 9 | AG76: =$AG$8 -> 国本ＪＳＣ
B78: 【監督会議：8時20分】【試合時間：15分-3分-15分】
C79: 試合開始 | F79: 代表者サイン | J79: チーム名 | Q79: 得点 | X79: チーム名 | AE79: 代表者サイン | AI79: 主審 | AK79: 副審 | AM79: 副審 | AO79: ４審
B80: 1 | C80: 09:00:00 | J80: =S74 -> 石井ＦＣ | Q80: =IF(OR(S80="",S81=""),"",S80+S81) -> 0 | S80: 0 | T80: － | U80: 0 | V80: =IF(OR(U80="",U81=""),"",U80+U81) -> 0 | X80: =AG74 -> ＦＣブロケード | AI80: 5 | AK80: 8 | AM80: =AK80 -> 8 | AO80: -
S81: 0 | T81: － | U81: 0
B82: 2 | C82: 09:40:00 | D82: 10:30:00 | J82: =S75 -> シャルムグランツＳＣ | Q82: =IF(OR(S82="",S83=""),"",S82+S83) -> 0 | S82: 0 | T82: － | U82: 4 | V82: =IF(OR(U82="",U83=""),"",U82+U83) -> 8 | X82: =AG75 -> 栃木ＳＣジュニア | AI82: 4 | AK82: 7 | AM82: =AK82 -> 7 | AO82: -
S83: 0 | T83: － | U83: 4
B84: 3 | C84: 10:20:00 | J84: =S76 -> ｕｎｉｏｎ ｓｃ | Q84: =IF(OR(S84="",S85=""),"",S84+S85) -> 1 | S84: 1 | T84: － | U84: 1 | V84: =IF(OR(U84="",U85=""),"",U84+U85) -> 2 | X84: =AG76 -> 国本ＪＳＣ | AI84: 1 | AK84: 4 | AM84: =AK84 -> 4 | AO84: -
S85: 0 | T85: － | U85: 1
B86: 4 | C86: 11:00:00 | D86: 10:30:00 | J86: =E74 -> 陽東ＳＳＳ | Q86: =IF(OR(S86="",S87=""),"",S86+S87) -> 2 | S86: 1 | T86: － | U86: 1 | V86: =IF(OR(U86="",U87=""),"",U86+U87) -> 1 | X86: =S74 -> 石井ＦＣ | AI86: 6 | AK86: 9 | AM86: =AK86 -> 9 | AO86: -
S87: 1 | T87: － | U87: 0
B88: 5 | C88: 11:40:00 | J88: =E75 -> 姿川第一ＦＣ | Q88: =IF(OR(S88="",S89=""),"",S88+S89) -> 3 | S88: 1 | T88: － | U88: 0 | V88: =IF(OR(U88="",U89=""),"",U88+U89) -> 0 | X88: =S75 -> シャルムグランツＳＣ | AI88: 3 | AK88: 6 | AM88: =AK88 -> 6 | AO88: -
S89: 2 | T89: － | U89: 0
B90: 6 | C90: 12:20:00 | J90: =E76 -> 豊郷ＪＦＣ宇都宮 | Q90: =IF(OR(S90="",S91=""),"",S90+S91) -> 0 | S90: 0 | T90: － | U90: 2 | V90: =IF(OR(U90="",U91=""),"",U90+U91) -> 3 | X90: =S76 -> ｕｎｉｏｎ ｓｃ | AI90: 2 | AK90: 5 | AM90: =AK90 -> 5 | AO90: -
S91: 0 | T91: － | U91: 1
B92: 7 | C92: 13:00:00 | J92: =E74 -> 陽東ＳＳＳ | Q92: =IF(OR(S92="",S93=""),"",S92+S93) -> 1 | S92: 1 | T92: － | U92: 0 | V92: =IF(OR(U92="",U93=""),"",U92+U93) -> 2 | X92: =AG74 -> ＦＣブロケード | AI92: 8 | AK92: 2 | AM92: =AK92 -> 2 | AO92: -
S93: 0 | T93: － | U93: 2
B94: 8 | C94: 13:40:00 | D94: 10:30:00 | J94: =E75 -> 姿川第一ＦＣ | Q94: =IF(OR(S94="",S95=""),"",S94+S95) -> 0 | S94: 0 | T94: － | U94: 3 | V94: =IF(OR(U94="",U95=""),"",U94+U95) -> 6 | X94: =AG75 -> 栃木ＳＣジュニア | AI94: 9 | AK94: 3 | AM94: =AK94 -> 3 | AO94: -
S95: 0 | T95: － | U95: 3
B96: 9 | C96: 14:20:00 | D96: 10:30:00 | J96: =E76 -> 豊郷ＪＦＣ宇都宮 | Q96: =IF(OR(S96="",S97=""),"",S96+S97) -> 0 | S96: 0 | T96: － | U96: 1 | V96: =IF(OR(U96="",U97=""),"",U96+U97) -> 1 | X96: =AG76 -> 国本ＪＳＣ | AI96: 7 | AK96: 1 | AM96: =AK96 -> 1 | AO96: -
S97: 0 | T97: － | U97: 0
D99: 警告／退場 | J99: チーム名 | R99: 氏名 | AA99: 番号 | AD99: 理由
D100: 警告 退場
D101: 警告 退場
D102: 警告 退場
C106: 会場 | G106: 豊郷北小小学校 | P106: 会場担当 | T106: 豊郷ＪＦＣ宇都宮 | AC106: 開催日 | AG106: 2018-09-17
C108: 1 | E108: =$E$6 -> 陽東ＳＳＳ | Q108: 4 | S108: =$S$6 -> 石井ＦＣ | AE108: 7 | AG108: =$AG$6 -> ＦＣブロケード
C109: 2 | E109: =$E$7 -> 姿川第一ＦＣ | Q109: 5 | S109: =$S$7 -> シャルムグランツＳＣ | AE109: 8 | AG109: =$AG$7 -> 栃木ＳＣジュニア
C110: 3 | E110: =$E$8 -> 豊郷ＪＦＣ宇都宮 | Q110: 6 | S110: =$S$8 -> ｕｎｉｏｎ ｓｃ | AE110: 9 | AG110: =$AG$8 -> 国本ＪＳＣ
B112: 【監督会議：8時20分】【試合時間：15分-3分-15分】
C113: 試合開始 | F113: 代表者サイン | J113: チーム名 | Q113: 得点 | X113: チーム名 | AE113: 代表者サイン | AI113: 主審 | AK113: 副審 | AM113: 副審 | AO113: ４審
B114: 1 | C114: 09:00:00 | J114: =E110 -> 豊郷ＪＦＣ宇都宮 | Q114: =IF(OR(S114="",S115=""),"",S114+S115) -> 2 | S114: 0 | T114: － | U114: 0 | V114: =IF(OR(U114="",U115=""),"",U114+U115) -> 0 | X114: =AG108 -> ＦＣブロケード | AI114: 4 | AK114: 8 | AM114: =AK114 -> 8 | AO114: -
S115: 2 | T115: － | U115: 0
B116: 2 | C116: 09:40:00 | D116: 10:30:00 | J116: =S108 -> 石井ＦＣ | Q116: =IF(OR(S116="",S117=""),"",S116+S117) -> 0 | S116: 0 | T116: － | U116: 4 | V116: =IF(OR(U116="",U117=""),"",U116+U117) -> 6 | X116: =AG109 -> 栃木ＳＣジュニア | AI116: 3 | AK116: 7 | AM116: =AK116 -> 7 | AO116: -
S117: 0 | T117: － | U117: 2
B118: 3 | C118: 10:20:00 | J118: =S109 -> シャルムグランツＳＣ | Q118: =IF(OR(S118="",S119=""),"",S118+S119) -> 0 | S118: 0 | T118: － | U118: 3 | V118: =IF(OR(U118="",U119=""),"",U118+U119) -> 5 | X118: =AG110 -> 国本ＪＳＣ | AI118: 6 | AK118: 1 | AM118: =AK118 -> 1 | AO118: -
S119: 0 | T119: － | U119: 2
B120: 4 | C120: 11:00:00 | D120: 10:30:00 | J120: =E108 -> 陽東ＳＳＳ | Q120: =IF(OR(S120="",S121=""),"",S120+S121) -> 0 | S120: 0 | T120: － | U120: 0 | V120: =IF(OR(U120="",U121=""),"",U120+U121) -> 1 | X120: =S110 -> ｕｎｉｏｎ ｓｃ | AI120: 5 | AK120: 9 | AM120: =AK120 -> 9 | AO120: -
S121: 0 | T121: － | U121: 1
B122: 5 | C122: 11:40:00 | J122: =E109 -> 姿川第一ＦＣ | Q122: =IF(OR(S122="",S123=""),"",S122+S123) -> 3 | S122: 0 | T122: － | U122: 0 | V122: =IF(OR(U122="",U123=""),"",U122+U123) -> 1 | X122: =AG108 -> ＦＣブロケード | AI122: 8 | AK122: 3 | AM122: =AK122 -> 3 | AO122: -
S123: 3 | T123: － | U123: 1
B124: 6 | C124: 12:20:00 | J124: =E110 -> 豊郷ＪＦＣ宇都宮 | Q124: =IF(OR(S124="",S125=""),"",S124+S125) -> 0 | S124: 0 | T124: － | U124: 3 | V124: =IF(OR(U124="",U125=""),"",U124+U125) -> 4 | X124: =AG109 -> 栃木ＳＣジュニア | AI124: 7 | AK124: 2 | AM124: =AK124 -> 2 | AO124: -
S125: 0 | T125: － | U125: 1
B126: 7 | C126: 13:00:00 | J126: =S108 -> 石井ＦＣ | Q126: =IF(OR(S126="",S127=""),"",S126+S127) -> 2 | S126: 1 | T126: － | U126: 5 | V126: =IF(OR(U126="",U127=""),"",U126+U127) -> 7 | X126: =AG110 -> 国本ＪＳＣ | AI126: 1 | AK126: 5 | AM126: =AK126 -> 5 | AO126: -
S127: 1 | T127: － | U127: 2
B128: 8 | C128: 13:40:00 | D128: 10:30:00 | J128: =E108 -> 陽東ＳＳＳ | Q128: =IF(OR(S128="",S129=""),"",S128+S129) -> 4 | S128: 1 | T128: － | U128: 0 | V128: =IF(OR(U128="",U129=""),"",U128+U129) -> 0 | X128: =S109 -> シャルムグランツＳＣ | AI128: 2 | AK128: 6 | AM128: =AK128 -> 6 | AO128: -
S129: 3 | T129: － | U129: 0
B130: 9 | C130: 14:20:00 | D130: 10:30:00 | J130: =E109 -> 姿川第一ＦＣ | Q130: =IF(OR(S130="",S131=""),"",S130+S131) -> 1 | S130: 1 | T130: － | U130: 1 | V130: =IF(OR(U130="",U131=""),"",U130+U131) -> 1 | X130: =S110 -> ｕｎｉｏｎ ｓｃ | AI130: 9 | AK130: 4 | AM130: =AK130 -> 4 | AO130: -
S131: 0 | T131: － | U131: 0
D133: 警告／退場 | J133: チーム名 | R133: 氏名 | AA133: 番号 | AD133: 理由
D134: 警告 退場
D135: 警告 退場
D136: 警告 退場

Sheet 対戦表（Cブロック）
C4: 会場 | G4: 雀宮南小 | P4: 会場担当 | T4: サウス宇都宮ＳＣ | AC4: 開催日 | AG4: 2018-09-02
C6: 1 | E6: Ｓ４スペランツァ | Q6: 4 | S6: サウス宇都宮ＳＣ | AE6: 7 | AG6: カテット白沢ＳＳ
C7: 2 | E7: みはらＳＣ Ｊｒ | Q7: 5 | S7: ＦＣグランディール宇都宮 | AE7: 8 | AG7: 宇都宮北部ＦＣトレ
C8: 3 | E8: ＦＣグラシアス | Q8: 6 | S8: 昭和・戸祭ＳＣ | AE8: 9 | AG8: ともぞうＳＣ U10
B10: 【監督会議：8時20分】【試合時間：15分-3分-15分】【クーリングブレイク：試合当日監督会議内にて決定する】
C11: 試合開始 | F11: 代表者サイン | J11: チーム名 | Q11: 得点 | X11: チーム名 | AE11: 代表者サイン | AI11: 主審 | AK11: 副審 | AM11: 副審 | AO11: ４審
B12: 1 | C12: 09:00:00 | J12: =E6 -> Ｓ４スペランツァ | Q12: =IF(OR(S12="",S13=""),"",S12+S13) -> 4 | S12: 1 | T12: － | U12: 0 | V12: =IF(OR(U12="",U13=""),"",U12+U13) -> 3 | X12: =E7 -> みはらＳＣ Ｊｒ | AI12: 3 | AK12: 4 | AM12: =AK12 -> 4 | AO12: -
S13: 3 | T13: － | U13: 3
B14: 2 | C14: 09:40:00 | D14: 10:30:00 | J14: =E8 -> ＦＣグラシアス | Q14: =IF(OR(S14="",S15=""),"",S14+S15) -> 4 | S14: 1 | T14: － | U14: 0 | V14: =IF(OR(U14="",U15=""),"",U14+U15) -> 1 | X14: =S6 -> サウス宇都宮ＳＣ | AI14: 1 | AK14: 2 | AM14: =AK14 -> 2 | AO14: -
S15: 3 | T15: － | U15: 1
B16: 3 | C16: 10:20:00 | J16: =S7 -> ＦＣグランディール宇都宮 | Q16: =IF(OR(S16="",S17=""),"",S16+S17) -> 3 | S16: 1 | T16: － | U16: 0 | V16: =IF(OR(U16="",U17=""),"",U16+U17) -> 0 | X16: =S8 -> 昭和・戸祭ＳＣ | AI16: 7 | AK16: 8 | AM16: =AK16 -> 8 | AO16: -
S17: 2 | T17: － | U17: 0
B18: 4 | C18: 11:00:00 | D18: 10:30:00 | J18: =AG6 -> カテット白沢ＳＳ | Q18: =IF(OR(S18="",S19=""),"",S18+S19) -> 4 | S18: 1 | T18: － | U18: 0 | V18: =IF(OR(U18="",U19=""),"",U18+U19) -> 0 | X18: =AG7 -> 宇都宮北部ＦＣトレ | AI18: 5 | AK18: 6 | AM18: =AK18 -> 6 | AO18: -
S19: 3 | T19: － | U19: 0
B20: 5 | C20: 11:40:00 | J20: =E6 -> Ｓ４スペランツァ | Q20: =IF(OR(S20="",S21=""),"",S20+S21) -> 0 | S20: 0 | T20: － | U20: 0 | V20: =IF(OR(U20="",U21=""),"",U20+U21) -> 1 | X20: =AG8 -> ともぞうＳＣ U10 | AI20: 2 | AK20: 3 | AM20: =AK20 -> 3 | AO20: -
S21: 0 | T21: － | U21: 1
B22: 6 | C22: 12:20:00 | J22: =E7 -> みはらＳＣ Ｊｒ | Q22: =IF(OR(S22="",S23=""),"",S22+S23) -> 3 | S22: 2 | T22: － | U22: 1 | V22: =IF(OR(U22="",U23=""),"",U22+U23) -> 1 | X22: =E8 -> ＦＣグラシアス | AI22: 9 | AK22: 1 | AM22: =AK22 -> 1 | AO22: -
S23: 1 | T23: － | U23: 0
B24: 7 | C24: 13:00:00 | J24: =S6 -> サウス宇都宮ＳＣ | Q24: =IF(OR(S24="",S25=""),"",S24+S25) -> 0 | S24: 0 | T24: － | U24: 2 | V24: =IF(OR(U24="",U25=""),"",U24+U25) -> 6 | X24: =S7 -> ＦＣグランディール宇都宮 | AI24: 6 | AK24: 7 | AM24: =AK24 -> 7 | AO24: -
S25: 0 | T25: － | U25: 4
B26: 8 | C26: 13:40:00 | D26: 10:30:00 | J26: =S8 -> 昭和・戸祭ＳＣ | Q26: =IF(OR(S26="",S27=""),"",S26+S27) -> 0 | S26: 0 | T26: － | U26: 1 | V26: =IF(OR(U26="",U27=""),"",U26+U27) -> 1 | X26: =AG6 -> カテット白沢ＳＳ | AI26: 8 | AK26: 9 | AM26: =AK26 -> 9 | AO26: -
S27: 0 | T27: － | U27: 0
B28: 9 | C28: 14:20:00 | D28: 10:30:00 | J28: =AG7 -> 宇都宮北部ＦＣトレ | Q28: =IF(OR(S28="",S29=""),"",S28+S29) -> 0 | S28: 0 | T28: － | U28: 10 | V28: =IF(OR(U28="",U29=""),"",U28+U29) -> 18 | X28: =AG8 -> ともぞうＳＣ U10 | AI28: 4 | AK28: 5 | AM28: =AK28 -> 5 | AO28: -
S29: 0 | T29: － | U29: 8
D31: 警告／退場 | J31: チーム名 | R31: 氏名 | AA31: 番号 | AD31: 理由
D32: 警告 退場
D33: 警告 退場
D34: 警告 退場
C38: 会場 | G38: 雀宮南小 | P38: 会場担当 | T38: サウス宇都宮ＳＣ | AC38: 開催日 | AG38: 2018-09-08
C40: 1 | E40: =$E$6 -> Ｓ４スペランツァ | Q40: 4 | S40: =$S$6 -> サウス宇都宮ＳＣ | AE40: 7 | AG40: =$AG$6 -> カテット白沢ＳＳ
C41: 2 | E41: =$E$7 -> みはらＳＣ Ｊｒ | Q41: 5 | S41: =$S$7 -> ＦＣグランディール宇都宮 | AE41: 8 | AG41: =$AG$7 -> 宇都宮北部ＦＣトレ
C42: 3 | E42: =$E$8 -> ＦＣグラシアス | Q42: 6 | S42: =$S$8 -> 昭和・戸祭ＳＣ | AE42: 9 | AG42: =$AG$8 -> ともぞうＳＣ U10
B44: 【監督会議：8時20分】【試合時間：15分-3分-15分】
C45: 試合開始 | F45: 代表者サイン | J45: チーム名 | Q45: 得点 | X45: チーム名 | AE45: 代表者サイン | AI45: 主審 | AK45: 副審 | AM45: 副審 | AO45: ４審
B46: 1 | C46: 09:00:00 | J46: =E40 -> Ｓ４スペランツァ | Q46: =IF(OR(S46="",S47=""),"",S46+S47) -> 3 | S46: 1 | T46: － | U46: 0 | V46: =IF(OR(U46="",U47=""),"",U46+U47) -> 0 | X46: =E42 -> ＦＣグラシアス | AI46: 6 | AK46: 8 | AM46: =AK46 -> 8 | AO46: -
S47: 2 | T47: － | U47: 0
B48: 2 | C48: 09:40:00 | D48: 10:30:00 | J48: =S42 -> 昭和・戸祭ＳＣ | Q48: =IF(OR(S48="",S49=""),"",S48+S49) -> 6 | S48: 1 | T48: － | U48: 0 | V48: =IF(OR(U48="",U49=""),"",U48+U49) -> 0 | X48: =AG41 -> 宇都宮北部ＦＣトレ | AI48: 1 | AK48: 3 | AM48: =AK48 -> 3 | AO48: -
S49: 5 | T49: － | U49: 0
B50: 3 | C50: 10:20:00 | J50: =E41 -> みはらＳＣ Ｊｒ | Q50: =IF(OR(S50="",S51=""),"",S50+S51) -> 5 | S50: 0 | T50: － | U50: 0 | V50: =IF(OR(U50="",U51=""),"",U50+U51) -> 0 | X50: =S40 -> サウス宇都宮ＳＣ | AI50: 7 | AK50: 9 | AM50: =AK50 -> 9 | AO50: -
S51: 5 | T51: － | U51: 0
B52: 4 | C52: 11:00:00 | D52: 10:30:00 | J52: =AG40 -> カテット白沢ＳＳ | Q52: =IF(OR(S52="",S53=""),"",S52+S53) -> 0 | S52: 0 | T52: － | U52: 0 | V52: =IF(OR(U52="",U53=""),"",U52+U53) -> 0 | X52: =AG42 -> ともぞうＳＣ U10 | AI52: 2 | AK52: 4 | AM52: =AK52 -> 4 | AO52: -
S53: 0 | T53: － | U53: 0
B54: 5 | C54: 11:40:00 | J54: =E42 -> ＦＣグラシアス | Q54: =IF(OR(S54="",S55=""),"",S54+S55) -> 0 | S54: 0 | T54: － | U54: 2 | V54: =IF(OR(U54="",U55=""),"",U54+U55) -> 3 | X54: =S41 -> ＦＣグランディール宇都宮 | AI54: 8 | AK54: 1 | AM54: =AK54 -> 1 | AO54: -
S55: 0 | T55: － | U55: 1
B56: 6 | C56: 12:20:00 | J56: =E40 -> Ｓ４スペランツァ | Q56: =IF(OR(S56="",S57=""),"",S56+S57) -> 15 | S56: 7 | T56: － | U56: 0 | V56: =IF(OR(U56="",U57=""),"",U56+U57) -> 0 | X56: =AG41 -> 宇都宮北部ＦＣトレ | AI56: 3 | AK56: 5 | AM56: =AK56 -> 5 | AO56: -
S57: 8 | T57: － | U57: 0
B58: 7 | C58: 13:00:00 | J58: =S40 -> サウス宇都宮ＳＣ | Q58: =IF(OR(S58="",S59=""),"",S58+S59) -> 0 | S58: 0 | T58: － | U58: 2 | V58: =IF(OR(U58="",U59=""),"",U58+U59) -> 6 | X58: =S42 -> 昭和・戸祭ＳＣ | AI58: 9 | AK58: 2 | AM58: =AK58 -> 2 | AO58: -
S59: 0 | T59: － | U59: 4
B60: 8 | C60: 13:40:00 | D60: 10:30:00 | J60: =E41 -> みはらＳＣ Ｊｒ | Q60: =IF(OR(S60="",S61=""),"",S60+S61) -> 1 | S60: 1 | T60: － | U60: 1 | V60: =IF(OR(U60="",U61=""),"",U60+U61) -> 2 | X60: =AG42 -> ともぞうＳＣ U10 | AI60: 5 | AK60: 7 | AM60: =AK60 -> 7 | AO60: -
S61: 0 | T61: － | U61: 1
B62: 9 | C62: 14:20:00 | D62: 10:30:00 | J62: =S41 -> ＦＣグランディール宇都宮 | Q62: =IF(OR(S62="",S63=""),"",S62+S63) -> 3 | S62: 3 | T62: － | U62: 0 | V62: =IF(OR(U62="",U63=""),"",U62+U63) -> 1 | X62: =AG40 -> カテット白沢ＳＳ | AI62: 4 | AK62: 6 | AM62: =AK62 -> 6 | AO62: -
S63: 0 | T63: － | U63: 1
D65: 警告／退場 | J65: チーム名 | R65: 氏名 | AA65: 番号 | AD65: 理由
D66: 警告 退場
D67: 警告 退場
D68: 警告 退場
C72: 会場 | G72: 雀宮南小 | P72: 会場担当 | T72: サウス宇都宮ＳＣ | AC72: 開催日 | AG72: 2018-09-09
C74: 1 | E74: =$E$6 -> Ｓ４スペランツァ | Q74: 4 | S74: =$S$6 -> サウス宇都宮ＳＣ | AE74: 7 | AG74: =$AG$6 -> カテット白沢ＳＳ
C75: 2 | E75: =$E$7 -> みはらＳＣ Ｊｒ | Q75: 5 | S75: =$S$7 -> ＦＣグランディール宇都宮 | AE75: 8 | AG75: =$AG$7 -> 宇都宮北部ＦＣトレ
C76: 3 | E76: =$E$8 -> ＦＣグラシアス | Q76: 6 | S76: =$S$8 -> 昭和・戸祭ＳＣ | AE76: 9 | AG76: =$AG$8 -> ともぞうＳＣ U10
B78: 【監督会議：8時20分】【試合時間：15分-3分-15分】
C79: 試合開始 | F79: 代表者サイン | J79: チーム名 | Q79: 得点 | X79: チーム名 | AE79: 代表者サイン | AI79: 主審 | AK79: 副審 | AM79: 副審 | AO79: ４審
B80: 1 | C80: 09:00:00 | J80: =S74 -> サウス宇都宮ＳＣ | Q80: =IF(OR(S80="",S81=""),"",S80+S81) -> 0 | S80: 0 | T80: － | U80: 0 | V80: =IF(OR(U80="",U81=""),"",U80+U81) -> 1 | X80: =AG74 -> カテット白沢ＳＳ | AI80: 5 | AK80: 8 | AM80: =AK80 -> 8 | AO80: -
S81: 0 | T81: － | U81: 1
B82: 2 | C82: 09:40:00 | D82: 10:30:00 | J82: =S75 -> ＦＣグランディール宇都宮 | Q82: =IF(OR(S82="",S83=""),"",S82+S83) -> 17 | S82: 11 | T82: － | U82: 0 | V82: =IF(OR(U82="",U83=""),"",U82+U83) -> 0 | X82: =AG75 -> 宇都宮北部ＦＣトレ | AI82: 4 | AK82: 7 | AM82: =AK82 -> 7 | AO82: -
S83: 6 | T83: － | U83: 0
B84: 3 | C84: 10:20:00 | J84: =S76 -> 昭和・戸祭ＳＣ | Q84: =IF(OR(S84="",S85=""),"",S84+S85) -> 0 | S84: 0 | T84: － | U84: 0 | V84: =IF(OR(U84="",U85=""),"",U84+U85) -> 4 | X84: =AG76 -> ともぞうＳＣ U10 | AI84: 1 | AK84: 4 | AM84: =AK84 -> 4 | AO84: -
S85: 0 | T85: － | U85: 4
B86: 4 | C86: 11:00:00 | D86: 10:30:00 | J86: =E74 -> Ｓ４スペランツァ | Q86: =IF(OR(S86="",S87=""),"",S86+S87) -> 5 | S86: 2 | T86: － | U86: 0 | V86: =IF(OR(U86="",U87=""),"",U86+U87) -> 0 | X86: =S74 -> サウス宇都宮ＳＣ | AI86: 6 | AK86: 9 | AM86: =AK86 -> 9 | AO86: -
S87: 3 | T87: － | U87: 0
B88: 5 | C88: 11:40:00 | J88: =E75 -> みはらＳＣ Ｊｒ | Q88: =IF(OR(S88="",S89=""),"",S88+S89) -> 1 | S88: 1 | T88: － | U88: 3 | V88: =IF(OR(U88="",U89=""),"",U88+U89) -> 3 | X88: =S75 -> ＦＣグランディール宇都宮 | AI88: 3 | AK88: 6 | AM88: =AK88 -> 6 | AO88: -
S89: 0 | T89: － | U89: 0
B90: 6 | C90: 12:20:00 | J90: =E76 -> ＦＣグラシアス | Q90: =IF(OR(S90="",S91=""),"",S90+S91) -> 0 | S90: 0 | T90: － | U90: 0 | V90: =IF(OR(U90="",U91=""),"",U90+U91) -> 2 | X90: =S76 -> 昭和・戸祭ＳＣ | AI90: 2 | AK90: 5 | AM90: =AK90 -> 5 | AO90: -
S91: 0 | T91: － | U91: 2
B92: 7 | C92: 13:00:00 | J92: =E74 -> Ｓ４スペランツァ | Q92: =IF(OR(S92="",S93=""),"",S92+S93) -> 0 | S92: 0 | T92: － | U92: 0 | V92: =IF(OR(U92="",U93=""),"",U92+U93) -> 0 | X92: =AG74 -> カテット白沢ＳＳ | AI92: 8 | AK92: 2 | AM92: =AK92 -> 2 | AO92: -
S93: 0 | T93: － | U93: 0
B94: 8 | C94: 13:40:00 | D94: 10:30:00 | J94: =E75 -> みはらＳＣ Ｊｒ | Q94: =IF(OR(S94="",S95=""),"",S94+S95) -> 12 | S94: 10 | T94: － | U94: 0 | V94: =IF(OR(U94="",U95=""),"",U94+U95) -> 0 | X94: =AG75 -> 宇都宮北部ＦＣトレ | AI94: 9 | AK94: 3 | AM94: =AK94 -> 3 | AO94: -
S95: 2 | T95: － | U95: 0
B96: 9 | C96: 14:20:00 | D96: 10:30:00 | J96: =E76 -> ＦＣグラシアス | Q96: =IF(OR(S96="",S97=""),"",S96+S97) -> 1 | S96: 0 | T96: － | U96: 3 | V96: =IF(OR(U96="",U97=""),"",U96+U97) -> 7 | X96: =AG76 -> ともぞうＳＣ U10 | AI96: 7 | AK96: 1 | AM96: =AK96 -> 1 | AO96: -
S97: 1 | T97: － | U97: 4
D99: 警告／退場 | J99: チーム名 | R99: 氏名 | AA99: 番号 | AD99: 理由
D100: 警告 退場
D101: 警告 退場
D102: 警告 退場
C106: 会場 | G106: 雀宮南小 | P106: 会場担当 | T106: サウス宇都宮ＳＣ | AC106: 開催日 | AG106: 2018-09-17
C108: 1 | E108: =$E$6 -> Ｓ４スペランツァ | Q108: 4 | S108: =$S$6 -> サウス宇都宮ＳＣ | AE108: 7 | AG108: =$AG$6 -> カテット白沢ＳＳ
C109: 2 | E109: =$E$7 -> みはらＳＣ Ｊｒ | Q109: 5 | S109: =$S$7 -> ＦＣグランディール宇都宮 | AE109: 8 | AG109: =$AG$7 -> 宇都宮北部ＦＣトレ
C110: 3 | E110: =$E$8 -> ＦＣグラシアス | Q110: 6 | S110: =$S$8 -> 昭和・戸祭ＳＣ | AE110: 9 | AG110: =$AG$8 -> ともぞうＳＣ U10
B112: 【監督会議：8時20分】【試合時間：15分-3分-15分】
C113: 試合開始 | F113: 代表者サイン | J113: チーム名 | Q113: 得点 | X113: チーム名 | AE113: 代表者サイン | AI113: 主審 | AK113: 副審 | AM113: 副審 | AO113: ４審
B114: 1 | C114: 09:00:00 | J114: =E110 -> ＦＣグラシアス | Q114: =IF(OR(S114="",S115=""),"",S114+S115) -> 0 | S114: 0 | T114: － | U114: 1 | V114: =IF(OR(U114="",U115=""),"",U114+U115) -> 1 | X114: =AG108 -> カテット白沢ＳＳ | AI114: 4 | AK114: 8 | AM114: =AK114 -> 8 | AO114: -
S115: 0 | T115: － | U115: 0
B116: 2 | C116: 09:40:00 | D116: 10:30:00 | J116: =S108 -> サウス宇都宮ＳＣ | Q116: =IF(OR(S116="",S117=""),"",S116+S117) -> 2 | S116: 1 | T116: － | U116: 0 | V116: =IF(OR(U116="",U117=""),"",U116+U117) -> 1 | X116: =AG109 -> 宇都宮北部ＦＣトレ | AI116: 3 | AK116: 7 | AM116: =AK116 -> 7 | AO116: -
S117: 1 | T117: － | U117: 1
B118: 3 | C118: 10:20:00 | J118: =S109 -> ＦＣグランディール宇都宮 | Q118: =IF(OR(S118="",S119=""),"",S118+S119) -> 0 | S118: 0 | T118: － | U118: 0 | V118: =IF(OR(U118="",U119=""),"",U118+U119) -> 0 | X118: =AG110 -> ともぞうＳＣ U10 | AI118: 6 | AK118: 1 | AM118: =AK118 -> 1 | AO118: -
S119: 0 | T119: － | U119: 0
B120: 4 | C120: 11:00:00 | D120: 10:30:00 | J120: =E108 -> Ｓ４スペランツァ | Q120: =IF(OR(S120="",S121=""),"",S120+S121) -> 2 | S120: 1 | T120: － | U120: 0 | V120: =IF(OR(U120="",U121=""),"",U120+U121) -> 0 | X120: =S110 -> 昭和・戸祭ＳＣ | AI120: 5 | AK120: 9 | AM120: =AK120 -> 9 | AO120: -
S121: 1 | T121: － | U121: 0
B122: 5 | C122: 11:40:00 | J122: =E109 -> みはらＳＣ Ｊｒ | Q122: =IF(OR(S122="",S123=""),"",S122+S123) -> 1 | S122: 1 | T122: － | U122: 0 | V122: =IF(OR(U122="",U123=""),"",U122+U123) -> 0 | X122: =AG108 -> カテット白沢ＳＳ | AI122: 8 | AK122: 3 | AM122: =AK122 -> 3 | AO122: -
S123: 0 | T123: － | U123: 0
B124: 6 | C124: 12:20:00 | J124: =E110 -> ＦＣグラシアス | Q124: =IF(OR(S124="",S125=""),"",S124+S125) -> 6 | S124: 3 | T124: － | U124: 0 | V124: =IF(OR(U124="",U125=""),"",U124+U125) -> 0 | X124: =AG109 -> 宇都宮北部ＦＣトレ | AI124: 7 | AK124: 2 | AM124: =AK124 -> 2 | AO124: -
S125: 3 | T125: － | U125: 0
B126: 7 | C126: 13:00:00 | J126: =S108 -> サウス宇都宮ＳＣ | Q126: =IF(OR(S126="",S127=""),"",S126+S127) -> 0 | S126: 0 | T126: － | U126: 0 | V126: =IF(OR(U126="",U127=""),"",U126+U127) -> 6 | X126: =AG110 -> ともぞうＳＣ U10 | AI126: 1 | AK126: 5 | AM126: =AK126 -> 5 | AO126: -
S127: 0 | T127: － | U127: 6
B128: 8 | C128: 13:40:00 | D128: 10:30:00 | J128: =E108 -> Ｓ４スペランツァ | Q128: =IF(OR(S128="",S129=""),"",S128+S129) -> 0 | S128: 0 | T128: － | U128: 2 | V128: =IF(OR(U128="",U129=""),"",U128+U129) -> 3 | X128: =S109 -> ＦＣグランディール宇都宮 | AI128: 2 | AK128: 6 | AM128: =AK128 -> 6 | AO128: -
S129: 0 | T129: － | U129: 1
B130: 9 | C130: 14:20:00 | D130: 10:30:00 | J130: =E109 -> みはらＳＣ Ｊｒ | Q130: =IF(OR(S130="",S131=""),"",S130+S131) -> 2 | S130: 1 | T130: － | U130: 0 | V130: =IF(OR(U130="",U131=""),"",U130+U131) -> 2 | X130: =S110 -> 昭和・戸祭ＳＣ | AI130: 9 | AK130: 4 | AM130: =AK130 -> 4 | AO130: -
S131: 1 | T131: － | U131: 2
D133: 警告／退場 | J133: チーム名 | R133: 氏名 | AA133: 番号 | AD133: 理由
D134: 警告 退場
D135: 警告 退場
D136: 警告 退場

Sheet ■
B1: チーム名 | C1: 試合数 | D1: 勝ち点
A2: Ａ01 | B2: =U10組合せ!C6 -> ＳＵＧＡＯ ＳＣ | C2: =INDIRECT("'Ａ～Ｃブロック星取表'!Aｓ"&ROW()*2) -> 9 | D2: =INDIRECT("'Ａ～Ｃブロック星取表'!Aｔ"&ROW()*2) -> 12
A3: Ａ02 | B3: =U10組合せ!C7 -> ＦＣアネーロ宇都宮 U10 | C3: =INDIRECT("'Ａ～Ｃブロック星取表'!Aｓ"&ROW()*2) -> 9 | D3: =INDIRECT("'Ａ～Ｃブロック星取表'!Aｔ"&ROW()*2) -> 27
A4: Ａ03 | B4: =U10組合せ!C8 -> ＦＣアリーバ | C4: 9 | D4: 7
A5: Ａ04 | B5: =U10組合せ!C9 -> 雀宮ＦＣ | C5: 9 | D5: 16
A6: Ａ05 | B6: =U10組合せ!C10 -> ブラッドレスＳＳ | C6: 9 | D6: 5
A7: Ａ06 | B7: =U10組合せ!C11 -> 上河内ＪＳＣ | C7: 9 | D7: 13
A8: Ａ07 | B8: =U10組合せ!C12 -> 清原ＳＳＳ | C8: 9 | D8: 13
A9: Ａ08 | B9: =U10組合せ!C13 -> 緑が丘ＹＦＣ | C9: 9 | D9: 19
A10: Ａ09 | B10: =U10組合せ!C14 -> ＦＣペンサーレ | C10: 9 | D10: 10
A11: Ａ10 | B11: =U10組合せ!C15 -> 富士見ＳＳＳ | C11: 9 | D11: 8
A12: Ｂ01 | B12: =U10組合せ!E6 -> 陽東ＳＳＳ | C12: =INDIRECT("'Ａ～Ｃブロック星取表'!Aｓ"&ROW()*2+2) -> 8 | D12: =INDIRECT("'Ａ～Ｃブロック星取表'!Aｔ"&ROW()*2+2) -> 6
A13: Ｂ02 | B13: =U10組合せ!E7 -> 姿川第一ＦＣ | C13: =INDIRECT("'Ａ～Ｃブロック星取表'!Aｓ"&ROW()*2+2) -> 8 | D13: =INDIRECT("'Ａ～Ｃブロック星取表'!Aｔ"&ROW()*2+2) -> 11
A14: Ｂ03 | B14: =U10組合せ!E8 -> 豊郷ＪＦＣ宇都宮 | C14: 8 | D14: 12
A15: Ｂ04 | B15: =U10組合せ!E9 -> 石井ＦＣ | C15: 8 | D15: 8
A16: Ｂ05 | B16: =U10組合せ!E10 -> シャルムグランツＳＣ | C16: 8 | D16: 0
A17: Ｂ06 | B17: =U10組合せ!E11 -> ｕｎｉｏｎ ｓｃ | C17: 8 | D17: 16
A18: Ｂ07 | B18: =U10組合せ!E12 -> ＦＣブロケード | C18: 8 | D18: 7
A19: Ｂ08 | B19: =U10組合せ!E13 -> 栃木ＳＣジュニア | C19: 8 | D19: 22
A20: Ｂ09 | B20: =U10組合せ!E14 -> 国本ＪＳＣ | C20: 8 | D20: 22
A21: Ｃ01 | B21: =U10組合せ!G6 -> Ｓ４スペランツァ | C21: =INDIRECT("'Ａ～Ｃブロック星取表'!Aｓ"&ROW()*2+6) -> 8 | D21: =INDIRECT("'Ａ～Ｃブロック星取表'!Aｔ"&ROW()*2+6) -> 16
A22: Ｃ02 | B22: =U10組合せ!G7 -> みはらＳＣ Ｊｒ | C22: =INDIRECT("'Ａ～Ｃブロック星取表'!Aｓ"&ROW()*2+6) -> 8 | D22: =INDIRECT("'Ａ～Ｃブロック星取表'!Aｔ"&ROW()*2+6) -> 13
A23: Ｃ03 | B23: =U10組合せ!G8 -> ＦＣグラシアス | C23: 8 | D23: 6
A24: Ｃ04 | B24: =U10組合せ!G9 -> サウス宇都宮ＳＣ | C24: 8 | D24: 3
A25: Ｃ05 | B25: =U10組合せ!G10 -> ＦＣグランディール宇都宮 | C25: 8 | D25: 22
A26: Ｃ06 | B26: =U10組合せ!G11 -> 昭和・戸祭ＳＣ | C26: 8 | D26: 10
A27: Ｃ07 | B27: =U10組合せ!G12 -> カテット白沢ＳＳ | C27: 8 | D27: 14
A28: Ｃ08 | B28: =U10組合せ!G13 -> 宇都宮北部ＦＣトレ | C28: 8 | D28: 0
A29: Ｃ09 | B29: =U10組合せ!G14 -> ともぞうＳＣ U10 | C29: 8 | D29: 20

Sheet Ａ～Ｃブロック星取表
A1: ＪＦＡ U-10サッカーリーグ2018（in栃木） 宇河地域リーグ戦（後期） 星取表
A3: Ａブロック | E3: =A5 -> ＳＵＧＡＯ ＳＣ | I3: =A7 -> ＦＣアネーロ宇都宮 U10 | M3: =A9 -> ＦＣアリーバ | Q3: =A11 -> 雀宮ＦＣ | U3: =A13 -> ブラッドレスＳＳ | Y3: =A15 -> 上河内ＪＳＣ | AC3: =A17 -> 清原ＳＳＳ | AG3: =A19 -> 緑が丘ＹＦＣ | AK3: =A21 -> ＦＣペンサーレ | AO3: =A23 -> 富士見ＳＳＳ | AS3: 試合数 | AT3: 勝ち点 | AU3: 勝ち点率 | AV3: 得失差 | AW3: 得点 | AX3: ブロック 順位 | AY3: 総合 順位
A4: A01 | I4: =IF(OR(J4="",L4=""),"",IF(J4>L4,"○",IF(J4<L4,"×",IF(J4=L4,"△")))) -> × | J4: 0 | K4: - | L4: 2 | M4: =IF(OR(N4="",P4=""),"",IF(N4>P4,"○",IF(N4<P4,"×",IF(N4=P4,"△")))) -> × | N4: 0 | O4: - | P4: 1 | Q4: =IF(OR(R4="",T4=""),"",IF(R4>T4,"○",IF(R4<T4,"×",IF(R4=T4,"△")))) -> ○ | R4: 3 | S4: － | T4: 1 | U4: =IF(OR(V4="",X4=""),"",IF(V4>X4,"○",IF(V4<X4,"×",IF(V4=X4,"△")))) -> × | V4: 1 | W4: － | X4: 2 | Y4: =IF(OR(Z4="",AB4=""),"",IF(Z4>AB4,"○",IF(Z4<AB4,"×",IF(Z4=AB4,"△")))) -> × | Z4: 1 | AA4: － | AB4: 2 | AC4: =IF(OR(AD4="",AF4=""),"",IF(AD4>AF4,"○",IF(AD4<AF4,"×",IF(AD4=AF4,"△")))) -> ○ | AD4: 4 | AE4: － | AF4: 3 | AG4: =IF(OR(AH4="",AJ4=""),"",IF(AH4>AJ4,"○",IF(AH4<AJ4,"×",IF(AH4=AJ4,"△")))) -> × | AH4: 1 | AI4: － | AJ4: 3 | AK4: =IF(OR(AL4="",AN4=""),"",IF(AL4>AN4,"○",IF(AL4<AN4,"×",IF(AL4=AN4,"△")))) -> ○ | AL4: 3 | AM4: － | AN4: 0 | AO4: =IF(OR(AP4="",AR4=""),"",IF(AP4>AR4,"○",IF(AP4<AR4,"×",IF(AP4=AR4,"△")))) -> ○ | AP4: 2 | AQ4: - | AR4: 1 | AS4: =COUNTIF(E4:AR5,"○")+COUNTIF(E4:AR5,"×")+COUNTIF(E4:AR5,"△") -> 9 | AT4: =COUNTIF(E4:AR5,"○")*3+COUNTIF(E4:AR5,"△") -> 12 | AU4: =IF(AS4=0,0,AT4/(AS4*3)) -> 0.4444444444 | AV4: =SUM(F4,J4,N4,R4,V4,Z4,AD4,AH4,AL4,AP4)-SUM(H4,L4,P4,T4,X4,AB4,AF4,AJ4,AN4,AR4) -> 0 | AW4: =SUM(F4,J4,N4,R4,V4,Z4,AD4,AH4,AL4,AP4,) -> 15 | AX4: =RANK(AU4,$AU$4:$AU$23) -> 6 | AY4: =RANK(AU4,$AU$4:$AU$65) -> 16
A5: =INDIRECT("U10組合せ!c"&(ROW()-1)/2+4) -> ＳＵＧＡＯ ＳＣ
A6: A02 | E6: =IF(OR(F6="",H6=""),"",IF(F6>H6,"○",IF(F6<H6,"×",IF(F6=H6,"△")))) -> ○ | F6: =IF(L4="","",L4) -> 2 | G6: － | H6: =IF(J4="","",J4) -> 0 | M6: =IF(OR(N6="",P6=""),"",IF(N6>P6,"○",IF(N6<P6,"×",IF(N6=P6,"△")))) -> ○ | N6: 8 | O6: - | P6: 0 | Q6: =IF(OR(R6="",T6=""),"",IF(R6>T6,"○",IF(R6<T6,"×",IF(R6=T6,"△")))) -> ○ | R6: 3 | S6: － | T6: 0 | U6: =IF(OR(V6="",X6=""),"",IF(V6>X6,"○",IF(V6<X6,"×",IF(V6=X6,"△")))) -> ○ | V6: 3 | W6: － | X6: 0 | Y6: =IF(OR(Z6="",AB6=""),"",IF(Z6>AB6,"○",IF(Z6<AB6,"×",IF(Z6=AB6,"△")))) -> ○ | Z6: 4 | AA6: － | AB6: 0 | AC6: =IF(OR(AD6="",AF6=""),"",IF(AD6>AF6,"○",IF(AD6<AF6,"×",IF(AD6=AF6,"△")))) -> ○ | AD6: 4 | AE6: － | AF6: 2 | AG6: =IF(OR(AH6="",AJ6=""),"",IF(AH6>AJ6,"○",IF(AH6<AJ6,"×",IF(AH6=AJ6,"△")))) -> ○ | AH6: 1 | AI6: － | AJ6: 0 | AK6: =IF(OR(AL6="",AN6=""),"",IF(AL6>AN6,"○",IF(AL6<AN6,"×",IF(AL6=AN6,"△")))) -> ○ | AL6: 4 | AM6: － | AN6: 0 | AO6: =IF(OR(AP6="",AR6=""),"",IF(AP6>AR6,"○",IF(AP6<AR6,"×",IF(AP6=AR6,"△")))) -> ○ | AP6: 3 | AQ6: - | AR6: 0 | AS6: =COUNTIF(E6:AR7,"○")+COUNTIF(E6:AR7,"×")+COUNTIF(E6:AR7,"△") -> 9 | AT6: =COUNTIF(E6:AR7,"○")*3+COUNTIF(E6:AR7,"△") -> 27 | AU6: =IF(AS6=0,0,AT6/(AS6*3)) -> 1 | AV6: =SUM(F6,J6,N6,R6,V6,Z6,AD6,AH6,AL6,AP6)-SUM(H6,L6,P6,T6,X6,AB6,AF6,AJ6,AN6,AR6) -> 30 | AW6: =SUM(F6,J6,N6,R6,V6,Z6,AD6,AH6,AL6,AP6,) -> 32 | AX6: =RANK(AU6,$AU$4:$AU$23) -> 1 | AY6: =RANK(AU6,$AU$4:$AU$65) -> 1
A7: =INDIRECT("U10組合せ!c"&(ROW()-1)/2+4) -> ＦＣアネーロ宇都宮 U10
A8: A03 | E8: =IF(OR(F8="",H8=""),"",IF(F8>H8,"○",IF(F8<H8,"×",IF(F8=H8,"△")))) -> ○ | F8: =IF(P4="","",P4) -> 1 | G8: － | H8: =IF(N4="","",N4) -> 0 | I8: =IF(OR(J8="",L8=""),"",IF(J8>L8,"○",IF(J8<L8,"×",IF(J8=L8,"△")))) -> × | J8: =IF(P6="","",P6) -> 0 | K8: － | L8: =IF(N6="","",N6) -> 8 | Q8: =IF(OR(R8="",T8=""),"",IF(R8>T8,"○",IF(R8<T8,"×",IF(R8=T8,"△")))) -> × | R8: 0 | S8: - | T8: 1 | U8: =IF(OR(V8="",X8=""),"",IF(V8>X8,"○",IF(V8<X8,"×",IF(V8=X8,"△")))) -> ○ | V8: 1 | W8: － | X8: 0 | Y8: =IF(OR(Z8="",AB8=""),"",IF(Z8>AB8,"○",IF(Z8<AB8,"×",IF(Z8=AB8,"△")))) -> × | Z8: 1 | AA8: － | AB8: 2 | AC8: =IF(OR(AD8="",AF8=""),"",IF(AD8>AF8,"○",IF(AD8<AF8,"×",IF(AD8=AF8,"△")))) -> × | AD8: 0 | AE8: － | AF8: 1 | AG8: =IF(OR(AH8="",AJ8=""),"",IF(AH8>AJ8,"○",IF(AH8<AJ8,"×",IF(AH8=AJ8,"△")))) -> × | AH8: 0 | AI8: － | AJ8: 1 | AK8: =IF(OR(AL8="",AN8=""),"",IF(AL8>AN8,"○",IF(AL8<AN8,"×",IF(AL8=AN8,"△")))) -> × | AL8: 0 | AM8: － | AN8: 2 | AO8: =IF(OR(AP8="",AR8=""),"",IF(AP8>AR8,"○",IF(AP8<AR8,"×",IF(AP8=AR8,"△")))) -> △ | AP8: 1 | AQ8: - | AR8: 1 | AS8: =COUNTIF(E8:AR9,"○")+COUNTIF(E8:AR9,"×")+COUNTIF(E8:AR9,"△") -> 9 | AT8: =COUNTIF(E8:AR9,"○")*3+COUNTIF(E8:AR9,"△") -> 7 | AU8: =IF(AS8=0,0,AT8/(AS8*3)) -> 0.2592592593 | AV8: =SUM(F8,J8,N8,R8,V8,Z8,AD8,AH8,AL8,AP8)-SUM(H8,L8,P8,T8,X8,AB8,AF8,AJ8,AN8,AR8) -> -12 | AW8: =SUM(F8,J8,N8,R8,V8,Z8,AD8,AH8,AL8,AP8,) -> 4 | AX8: =RANK(AU8,$AU$4:$AU$23) -> 9 | AY8: =RANK(AU8,$AU$4:$AU$65) -> 22
A9: =INDIRECT("U10組合せ!c"&(ROW()-1)/2+4) -> ＦＣアリーバ
A10: A04 | E10: =IF(OR(F10="",H10=""),"",IF(F10>H10,"○",IF(F10<H10,"×",IF(F10=H10,"△")))) -> × | F10: =IF(T4="","",T4) -> 1 | G10: － | H10: =IF(R4="","",R4) -> 3 | I10: =IF(OR(J10="",L10=""),"",IF(J10>L10,"○",IF(J10<L10,"×",IF(J10=L10,"△")))) -> × | J10: =IF(T6="","",T6) -> 0 | K10: － | L10: =IF(R6="","",R6) -> 3 | M10: =IF(OR(N10="",P10=""),"",IF(N10>P10,"○",IF(N10<P10,"×",IF(N10=P10,"△")))) -> ○ | N10: =IF(T8="","",T8) -> 1 | O10: － | P10: =IF(R8="","",R8) -> 0 | U10: =IF(OR(V10="",X10=""),"",IF(V10>X10,"○",IF(V10<X10,"×",IF(V10=X10,"△")))) -> ○ | V10: 2 | W10: - | X10: 0 | Y10: =IF(OR(Z10="",AB10=""),"",IF(Z10>AB10,"○",IF(Z10<AB10,"×",IF(Z10=AB10,"△")))) -> ○ | Z10: 2 | AA10: － | AB10: 1 | AC10: =IF(OR(AD10="",AF10=""),"",IF(AD10>AF10,"○",IF(AD10<AF10,"×",IF(AD10=AF10,"△")))) -> × | AD10: 0 | AE10: － | AF10: 1 | AG10: =IF(OR(AH10="",AJ10=""),"",IF(AH10>AJ10,"○",IF(AH10<AJ10,"×",IF(AH10=AJ10,"△")))) -> △ | AH10: 1 | AI10: － | AJ10: 1 | AK10: =IF(OR(AL10="",AN10=""),"",IF(AL10>AN10,"○",IF(AL10<AN10,"×",IF(AL10=AN10,"△")))) -> ○ | AL10: 1 | AM10: － | AN10: 0 | AO10: =IF(OR(AP10="",AR10=""),"",IF(AP10>AR10,"○",IF(AP10<AR10,"×",IF(AP10=AR10,"△")))) -> ○ | AP10: 1 | AQ10: － | AR10: 0 | AS10: =COUNTIF(E10:AR11,"○")+COUNTIF(E10:AR11,"×")+COUNTIF(E10:AR11,"△") -> 9 | AT10: =COUNTIF(E10:AR11,"○")*3+COUNTIF(E10:AR11,"△") -> 16 | AU10: =IF(AS10=0,0,AT10/(AS10*3)) -> 0.5925925926 | AV10: =SUM(F10,J10,N10,R10,V10,Z10,AD10,AH10,AL10,AP10)-SUM(H10,L10,P10,T10,X10,AB10,AF10,AJ10,AN10,AR10) -> 0 | AW10: =SUM(F10,J10,N10,R10,V10,Z10,AD10,AH10,AL10,AP10,) -> 9 | AX10: =RANK(AU10,$AU$4:$AU$23) -> 3 | AY10: =RANK(AU10,$AU$4:$AU$65) -> 9
A11: =INDIRECT("U10組合せ!c"&(ROW()-1)/2+4) -> 雀宮ＦＣ
A12: A05 | E12: =IF(OR(F12="",H12=""),"",IF(F12>H12,"○",IF(F12<H12,"×",IF(F12=H12,"△")))) -> ○ | F12: =IF(X4="","",X4) -> 2 | G12: － | H12: =IF(V4="","",V4) -> 1 | I12: =IF(OR(J12="",L12=""),"",IF(J12>L12,"○",IF(J12<L12,"×",IF(J12=L12,"△")))) -> × | J12: =IF(X6="","",X6) -> 0 | K12: － | L12: =IF(V6="","",V6) -> 3 | M12: =IF(OR(N12="",P12=""),"",IF(N12>P12,"○",IF(N12<P12,"×",IF(N12=P12,"△")))) -> × | N12: =IF(X8="","",X8) -> 0 | O12: － | P12: =IF(V8="","",V8) -> 1 | Q12: =IF(OR(R12="",T12=""),"",IF(R12>T12,"○",IF(R12<T12,"×",IF(R12=T12,"△")))) -> × | R12: =IF(X10="","",X10) -> 0 | S12: － | T12: =IF(V10="","",V10) -> 2 | Y12: =IF(OR(Z12="",AB12=""),"",IF(Z12>AB12,"○",IF(Z12<AB12,"×",IF(Z12=AB12,"△")))) -> △ | Z12: 1 | AA12: - | AB12: 1 | AC12: =IF(OR(AD12="",AF12=""),"",IF(AD12>AF12,"○",IF(AD12<AF12,"×",IF(AD12=AF12,"△")))) -> △ | AD12: 0 | AE12: － | AF12: 0 | AG12: =IF(OR(AH12="",AJ12=""),"",IF(AH12>AJ12,"○",IF(AH12<AJ12,"×",IF(AH12=AJ12,"△")))) -> × | AH12: 0 | AI12: － | AJ12: 2 | AK12: =IF(OR(AL12="",AN12=""),"",IF(AL12>AN12,"○",IF(AL12<AN12,"×",IF(AL12=AN12,"△")))) -> × | AL12: 0 | AM12: － | AN12: 1 | AO12: =IF(OR(AP12="",AR12=""),"",IF(AP12>AR12,"○",IF(AP12<AR12,"×",IF(AP12=AR12,"△")))) -> × | AP12: 0 | AQ12: － | AR12: 4 | AS12: =COUNTIF(E12:AR13,"○")+COUNTIF(E12:AR13,"×")+COUNTIF(E12:AR13,"△") -> 9 | AT12: =COUNTIF(E12:AR13,"○")*3+COUNTIF(E12:AR13,"△") -> 5 | AU12: =IF(AS12=0,0,AT12/(AS12*3)) -> 0.1851851852 | AV12: =SUM(F12,J12,N12,R12,V12,Z12,AD12,AH12,AL12,AP12)-SUM(H12,L12,P12,T12,X12,AB12,AF12,AJ12,AN12,AR12) -> -12 | AW12: =SUM(F12,J12,N12,R12,V12,Z12,AD12,AH12,AL12,AP12,) -> 3 | AX12: =RANK(AU12,$AU$4:$AU$23) -> 10 | AY12: =RANK(AU12,$AU$4:$AU$65) -> 25
A13: =INDIRECT("U10組合せ!c"&(ROW()-1)/2+4) -> ブラッドレスＳＳ
A14: A06 | E14: =IF(OR(F14="",H14=""),"",IF(F14>H14,"○",IF(F14<H14,"×",IF(F14=H14,"△")))) -> ○ | F14: =IF(AB4="","",AB4) -> 2 | G14: － | H14: =IF(Z4="","",Z4) -> 1 | I14: =IF(OR(J14="",L14=""),"",IF(J14>L14,"○",IF(J14<L14,"×",IF(J14=L14,"△")))) -> × | J14: =IF(AB6="","",AB6) -> 0 | K14: － | L14: =IF(Z6="","",Z6) -> 4 | M14: =IF(OR(N14="",P14=""),"",IF(N14>P14,"○",IF(N14<P14,"×",IF(N14=P14,"△")))) -> ○ | N14: =IF(AB8="","",AB8) -> 2 | O14: － | P14: =IF(Z8="","",Z8) -> 1 | Q14: =IF(OR(R14="",T14=""),"",IF(R14>T14,"○",IF(R14<T14,"×",IF(R14=T14,"△")))) -> × | R14: =IF(AB10="","",AB10) -> 1 | S14: － | T14: =IF(Z10="","",Z10) -> 2 | U14: =IF(OR(V14="",X14=""),"",IF(V14>X14,"○",IF(V14<X14,"×",IF(V14=X14,"△")))) -> △ | V14: =IF(AB12="","",AB12) -> 1 | W14: － | X14: =IF(Z12="","",Z12) -> 1 | AC14: =IF(OR(AD14="",AF14=""),"",IF(AD14>AF14,"○",IF(AD14<AF14,"×",IF(AD14=AF14,"△")))) -> × | AD14: 1 | AE14: - | AF14: 3 | AG14: =IF(OR(AH14="",AJ14=""),"",IF(AH14>AJ14,"○",IF(AH14<AJ14,"×",IF(AH14=AJ14,"△")))) -> × | AH14: 1 | AI14: － | AJ14: 3 | AK14: =IF(OR(AL14="",AN14=""),"",IF(AL14>AN14,"○",IF(AL14<AN14,"×",IF(AL14=AN14,"△")))) -> ○ | AL14: 3 | AM14: － | AN14: 0 | AO14: =IF(OR(AP14="",AR14=""),"",IF(AP14>AR14,"○",IF(AP14<AR14,"×",IF(AP14=AR14,"△")))) -> ○ | AP14: 4 | AQ14: － | AR14: 3 | AS14: =COUNTIF(E14:AR15,"○")+COUNTIF(E14:AR15,"×")+COUNTIF(E14:AR15,"△") -> 9 | AT14: =COUNTIF(E14:AR15,"○")*3+COUNTIF(E14:AR15,"△") -> 13 | AU14: =IF(AS14=0,0,AT14/(AS14*3)) -> 0.4814814815 | AV14: =SUM(F14,J14,N14,R14,V14,Z14,AD14,AH14,AL14,AP14)-SUM(H14,L14,P14,T14,X14,AB14,AF14,AJ14,AN14,AR14) -> -3 | AW14: =SUM(F14,J14,N14,R14,V14,Z14,AD14,AH14,AL14,AP14,) -> 15 | AX14: =RANK(AU14,$AU$4:$AU$23) -> 4 | AY14: =RANK(AU14,$AU$4:$AU$65) -> 13
A15: =INDIRECT("U10組合せ!c"&(ROW()-1)/2+4) -> 上河内ＪＳＣ
A16: A07 | E16: =IF(OR(F16="",H16=""),"",IF(F16>H16,"○",IF(F16<H16,"×",IF(F16=H16,"△")))) -> × | F16: =IF(AF4="","",AF4) -> 3 | G16: － | H16: =IF(AD4="","",AD4) -> 4 | I16: =IF(OR(J16="",L16=""),"",IF(J16>L16,"○",IF(J16<L16,"×",IF(J16=L16,"△")))) -> × | J16: =IF(AF6="","",AF6) -> 2 | K16: － | L16: =IF(AD6="","",AD6) -> 4 | M16: =IF(OR(N16="",P16=""),"",IF(N16>P16,"○",IF(N16<P16,"×",IF(N16=P16,"△")))) -> ○ | N16: =IF(AF8="","",AF8) -> 1 | O16: － | P16: =IF(AD8="","",AD8) -> 0 | Q16: =IF(OR(R16="",T16=""),"",IF(R16>T16,"○",IF(R16<T16,"×",IF(R16=T16,"△")))) -> ○ | R16: =IF(AF10="","",AF10) -> 1 | S16: － | T16: =IF(AD10="","",AD10) -> 0 | U16: =IF(OR(V16="",X16=""),"",IF(V16>X16,"○",IF(V16<X16,"×",IF(V16=X16,"△")))) -> △ | V16: =IF(AF12="","",AF12) -> 0 | W16: － | X16: =IF(AD12="","",AD12) -> 0 | Y16: =IF(OR(Z16="",AB16=""),"",IF(Z16>AB16,"○",IF(Z16<AB16,"×",IF(Z16=AB16,"△")))) -> ○ | Z16: =IF(AF14="","",AF14) -> 3 | AA16: － | AB16: =IF(AD14="","",AD14) -> 1 | AG16: =IF(OR(AH16="",AJ16=""),"",IF(AH16>AJ16,"○",IF(AH16<AJ16,"×",IF(AH16=AJ16,"△")))) -> ○ | AH16: 1 | AI16: - | AJ16: 0 | AK16: =IF(OR(AL16="",AN16=""),"",IF(AL16>AN16,"○",IF(AL16<AN16,"×",IF(AL16=AN16,"△")))) -> × | AL16: 1 | AM16: － | AN16: 2 | AO16: =IF(OR(AP16="",AR16=""),"",IF(AP16>AR16,"○",IF(AP16<AR16,"×",IF(AP16=AR16,"△")))) -> × | AP16: 0 | AQ16: － | AR16: 1 | AS16: =COUNTIF(E16:AR17,"○")+COUNTIF(E16:AR17,"×")+COUNTIF(E16:AR17,"△") -> 9 | AT16: =COUNTIF(E16:AR17,"○")*3+COUNTIF(E16:AR17,"△") -> 13 | AU16: =IF(AS16=0,0,AT16/(AS16*3)) -> 0.4814814815 | AV16: =SUM(F16,J16,N16,R16,V16,Z16,AD16,AH16,AL16,AP16)-SUM(H16,L16,P16,T16,X16,AB16,AF16,AJ16,AN16,AR16) -> 0 | AW16: =SUM(F16,J16,N16,R16,V16,Z16,AD16,AH16,AL16,AP16,) -> 12 | AX16: =RANK(AU16,$AU$4:$AU$23) -> 4 | AY16: =RANK(AU16,$AU$4:$AU$65) -> 13
A17: =INDIRECT("U10組合せ!c"&(ROW()-1)/2+4) -> 清原ＳＳＳ
A18: A08 | E18: =IF(OR(F18="",H18=""),"",IF(F18>H18,"○",IF(F18<H18,"×",IF(F18=H18,"△")))) -> ○ | F18: =IF(AJ4="","",AJ4) -> 3 | G18: － | H18: =IF(AH4="","",AH4) -> 1 | I18: =IF(OR(J18="",L18=""),"",IF(J18>L18,"○",IF(J18<L18,"×",IF(J18=L18,"△")))) -> × | J18: =IF(AJ6="","",AJ6) -> 0 | K18: － | L18: =IF(AH6="","",AH6) -> 1 | M18: =IF(OR(N18="",P18=""),"",IF(N18>P18,"○",IF(N18<P18,"×",IF(N18=P18,"△")))) -> ○ | N18: =IF(AJ8="","",AJ8) -> 1 | O18: － | P18: =IF(AH8="","",AH8) -> 0 | Q18: =IF(OR(R18="",T18=""),"",IF(R18>T18,"○",IF(R18<T18,"×",IF(R18=T18,"△")))) -> △ | R18: =IF(AJ10="","",AJ10) -> 1 | S18: － | T18: =IF(AH10="","",AH10) -> 1 | U18: =IF(OR(V18="",X18=""),"",IF(V18>X18,"○",IF(V18<X18,"×",IF(V18=X18,"△")))) -> ○ | V18: =IF(AJ12="","",AJ12) -> 2 | W18: － | X18: =IF(AH12="","",AH12) -> 0 | Y18: =IF(OR(Z18="",AB18=""),"",IF(Z18>AB18,"○",IF(Z18<AB18,"×",IF(Z18=AB18,"△")))) -> ○ | Z18: =IF(AJ14="","",AJ14) -> 3 | AA18: － | AB18: =IF(AH14="","",AH14) -> 1 | AC18: =IF(OR(AD18="",AF18=""),"",IF(AD18>AF18,"○",IF(AD18<AF18,"×",IF(AD18=AF18,"△")))) -> × | AD18: =IF(AJ16="","",AJ16) -> 0 | AE18: － | AF18: =IF(AH16="","",AH16) -> 1 | AK18: =IF(OR(AL18="",AN18=""),"",IF(AL18>AN18,"○",IF(AL18<AN18,"×",IF(AL18=AN18,"△")))) -> ○ | AL18: 5 | AM18: - | AN18: 1 | AO18: =IF(OR(AP18="",AR18=""),"",IF(AP18>AR18,"○",IF(AP18<AR18,"×",IF(AP18=AR18,"△")))) -> ○ | AP18: 1 | AQ18: － | AR18: 0 | AS18: =COUNTIF(E18:AR19,"○")+COUNTIF(E18:AR19,"×")+COUNTIF(E18:AR19,"△") -> 9 | AT18: =COUNTIF(E18:AR19,"○")*3+COUNTIF(E18:AR19,"△") -> 19 | AU18: =IF(AS18=0,0,AT18/(AS18*3)) -> 0.7037037037 | AV18: =SUM(F18,J18,N18,R18,V18,Z18,AD18,AH18,AL18,AP18)-SUM(H18,L18,P18,T18,X18,AB18,AF18,AJ18,AN18,AR18) -> 10 | AW18: =SUM(F18,J18,N18,R18,V18,Z18,AD18,AH18,AL18,AP18,) -> 16 | AX18: =RANK(AU18,$AU$4:$AU$23) -> 2 | AY18: =RANK(AU18,$AU$4:$AU$65) -> 6
A19: =INDIRECT("U10組合せ!c"&(ROW()-1)/2+4) -> 緑が丘ＹＦＣ
A20: A09 | E20: =IF(OR(F20="",H20=""),"",IF(F20>H20,"○",IF(F20<H20,"×",IF(F20=H20,"△")))) -> × | F20: =IF(AN4="","",AN4) -> 0 | G20: － | H20: =IF(AL4="","",AL4) -> 3 | I20: =IF(OR(J20="",L20=""),"",IF(J20>L20,"○",IF(J20<L20,"×",IF(J20=L20,"△")))) -> × | J20: =IF(AN6="","",AN6) -> 0 | K20: － | L20: =IF(AL6="","",AL6) -> 4 | M20: =IF(OR(N20="",P20=""),"",IF(N20>P20,"○",IF(N20<P20,"×",IF(N20=P20,"△")))) -> ○ | N20: =IF(AN8="","",AN8) -> 2 | O20: － | P20: =IF(AL8="","",AL8) -> 0 | Q20: =IF(OR(R20="",T20=""),"",IF(R20>T20,"○",IF(R20<T20,"×",IF(R20=T20,"△")))) -> × | R20: =IF(AN10="","",AN10) -> 0 | S20: － | T20: =IF(AL10="","",AL10) -> 1 | U20: =IF(OR(V20="",X20=""),"",IF(V20>X20,"○",IF(V20<X20,"×",IF(V20=X20,"△")))) -> ○ | V20: =IF(AN12="","",AN12) -> 1 | W20: － | X20: =IF(AL12="","",AL12) -> 0 | Y20: =IF(OR(Z20="",AB20=""),"",IF(Z20>AB20,"○",IF(Z20<AB20,"×",IF(Z20=AB20,"△")))) -> × | Z20: =IF(AN14="","",AN14) -> 0 | AA20: － | AB20: =IF(AL14="","",AL14) -> 3 | AC20: =IF(OR(AD20="",AF20=""),"",IF(AD20>AF20,"○",IF(AD20<AF20,"×",IF(AD20=AF20,"△")))) -> ○ | AD20: =IF(AN16="","",AN16) -> 2 | AE20: － | AF20: =IF(AL16="","",AL16) -> 1 | AG20: =IF(OR(AH20="",AJ20=""),"",IF(AH20>AJ20,"○",IF(AH20<AJ20,"×",IF(AH20=AJ20,"△")))) -> × | AH20: =IF(AN18="","",AN18) -> 1 | AI20: － | AJ20: =IF(AL18="","",AL18) -> 5 | AO20: =IF(OR(AP20="",AR20=""),"",IF(AP20>AR20,"○",IF(AP20<AR20,"×",IF(AP20=AR20,"△")))) -> △ | AP20: 0 | AQ20: - | AR20: 0 | AS20: =COUNTIF(E20:AR21,"○")+COUNTIF(E20:AR21,"×")+COUNTIF(E20:AR21,"△") -> 9 | AT20: =COUNTIF(E20:AR21,"○")*3+COUNTIF(E20:AR21,"△") -> 10 | AU20: =IF(AS20=0,0,AT20/(AS20*3)) -> 0.3703703704 | AV20: =SUM(F20,J20,N20,R20,V20,Z20,AD20,AH20,AL20,AP20)-SUM(H20,L20,P20,T20,X20,AB20,AF20,AJ20,AN20,AR20) -> -11 | AW20: =SUM(F20,J20,N20,R20,V20,Z20,AD20,AH20,AL20,AP20,) -> 6 | AX20: =RANK(AU20,$AU$4:$AU$23) -> 7 | AY20: =RANK(AU20,$AU$4:$AU$65) -> 18
A21: =INDIRECT("U10組合せ!c"&(ROW()-1)/2+4) -> ＦＣペンサーレ
A22: A10 | E22: =IF(OR(F22="",H22=""),"",IF(F22>H22,"○",IF(F22<$H22,"×",IF(F22=H22,"△")))) -> × | F22: =IF(AR4="","",AR4) -> 1 | G22: － | H22: =IF(AP4="","",AP4) -> 2 | I22: =IF(OR(J22="",L22=""),"",IF(J22>L22,"○",IF(J22<L22,"×",IF(J22=L22,"△")))) -> × | J22: =IF(AR6="","",AR6) -> 0 | K22: － | L22: =IF(AP6="","",AP6) -> 3 | M22: =IF(OR(N22="",P22=""),"",IF(N22>P22,"○",IF(N22<P22,"×",IF(N22=P22,"△")))) -> △ | N22: =IF(AR8="","",AR8) -> 1 | O22: － | P22: =IF(AP8="","",AP8) -> 1 | Q22: =IF(OR(R22="",T22=""),"",IF(R22>T22,"○",IF(R22<T22,"×",IF(R22=T22,"△")))) -> × | R22: =IF(AR10="","",AR10) -> 0 | S22: － | T22: =IF(AP10="","",AP10) -> 1 | U22: =IF(OR(V22="",X22=""),"",IF(V22>X22,"○",IF(V22<X22,"×",IF(V22=X22,"△")))) -> ○ | V22: =IF(AR12="","",AR12) -> 4 | W22: － | X22: =IF(AP12="","",AP12) -> 0 | Y22: =IF(OR(Z22="",AB22=""),"",IF(Z22>AB22,"○",IF(Z22<AB22,"×",IF(Z22=AB22,"△")))) -> × | Z22: =IF(AR14="","",AR14) -> 3 | AA22: － | AB22: =IF(AP14="","",AP14) -> 4 | AC22: =IF(OR(AD22="",AF22=""),"",IF(AD22>AF22,"○",IF(AD22<AF22,"×",IF(AD22=AF22,"△")))) -> ○ | AD22: =IF(AR16="","",AR16) -> 1 | AE22: － | AF22: =IF(AP16="","",AP16) -> 0 | AG22: =IF(OR(AH22="",AJ22=""),"",IF(AH22>AJ22,"○",IF(AH22<AJ22,"×",IF(AH22=AJ22,"△")))) -> × | AH22: =IF(AR18="","",AR18) -> 0 | AI22: － | AJ22: =IF(AP18="","",AP18) -> 1 | AK22: =IF(OR(AL22="",AN22=""),"",IF(AL22>AN22,"○",IF(AL22<AN22,"×",IF(AL22=AN22,"△")))) -> △ | AL22: =IF(AR20="","",AR20) -> 0 | AM22: － | AN22: =IF(AP20="","",AP20) -> 0 | AS22: =COUNTIF(E22:AR23,"○")+COUNTIF(E22:AR23,"×")+COUNTIF(E22:AR23,"△") -> 9 | AT22: =COUNTIF(E22:AR23,"○")*3+COUNTIF(E22:AR23,"△") -> 8 | AU22: =IF(AS22=0,0,AT22/(AS22*3)) -> 0.2962962963 | AV22: =SUM(F22,J22,N22,R22,V22,Z22,AD22,AH22,AL22,AP22)-SUM(H22,L22,P22,T22,X22,AB22,AF22,AJ22,AN22,AR22) -> -2 | AW22: =SUM(F22,J22,N22,R22,V22,Z22,AD22,AH22,AL22,AP22,) -> 10 | AX22: =RANK(AU22,$AU$4:$AU$23) -> 8 | AY22: =RANK(AU22,$AU$4:$AU$65) -> 20
A23: =INDIRECT("U10組合せ!c"&(ROW()-1)/2+4) -> 富士見ＳＳＳ
A25: Ｂブロック | E25: =A27 -> 陽東ＳＳＳ | I25: =A29 -> 姿川第一ＦＣ | M25: =A31 -> 豊郷ＪＦＣ宇都宮 | Q25: =A33 -> 石井ＦＣ | U25: =A35 -> シャルムグランツＳＣ | Y25: =A37 -> ｕｎｉｏｎ ｓｃ | AC25: =A39 -> ＦＣブロケード | AG25: =A41 -> 栃木ＳＣジュニア | AK25: =A43 -> 国本ＪＳＣ | AS25: 試合数 | AT25: 勝ち点 | AU25: 勝ち点率 | AV25: 得失差 | AW25: 得点 | AX25: ブロック 順位 | AY25: 総合 順位
A26: B01 | I26: =IF(OR(J26="",L26=""),"",IF(J26>L26,"○",IF(J26<L26,"×",IF(J26=L26,"△")))) -> × | J26: 0 | K26: － | L26: 4 | M26: =IF(OR(N26="",P26=""),"",IF(N26>P26,"○",IF(N26<P26,"×",IF(N26=P26,"△")))) -> × | N26: 0 | O26: － | P26: 3 | Q26: =IF(OR(R26="",T26=""),"",IF(R26>T26,"○",IF(R26<T26,"×",IF(R26=T26,"△")))) -> ○ | R26: 2 | S26: － | T26: 1 | U26: =IF(OR(V26="",X26=""),"",IF(V26>X26,"○",IF(V26<X26,"×",IF(V26=X26,"△")))) -> ○ | V26: 4 | W26: － | X26: 0 | Y26: =IF(OR(Z26="",AB26=""),"",IF(Z26>AB26,"○",IF(Z26<AB26,"×",IF(Z26=AB26,"△")))) -> × | Z26: 0 | AA26: － | AB26: 1 | AC26: =IF(OR(AD26="",AF26=""),"",IF(AD26>AF26,"○",IF(AD26<AF26,"×",IF(AD26=AF26,"△")))) -> × | AD26: 1 | AE26: － | AF26: 2 | AG26: =IF(OR(AH26="",AJ26=""),"",IF(AH26>AJ26,"○",IF(AH26<AJ26,"×",IF(AH26=AJ26,"△")))) -> × | AH26: 0 | AI26: － | AJ26: 11 | AK26: =IF(OR(AL26="",AN26=""),"",IF(AL26>AN26,"○",IF(AL26<AN26,"×",IF(AL26=AN26,"△")))) -> × | AL26: 1 | AM26: － | AN26: 6 | AS26: =COUNTIF(E26:AN27,"○")+COUNTIF(E26:AN27,"×")+COUNTIF(E26:AN27,"△") -> 8 | AT26: =COUNTIF(E26:AN27,"○")*3+COUNTIF(E26:AN27,"△") -> 6 | AU26: =IF(AS26=0,0,AT26/(AS26*3)) -> 0.25 | AV26: =SUM(F26,J26,N26,R26,V26,Z26,AD26,AH26,AL26,AP26)-SUM(H26,L26,P26,T26,X26,AB26,AF26,AJ26,AN26,AR26) -> -20 | AW26: =SUM(F26,J26,N26,R26,V26,Z26,AD26,AH26,AL26,AP26,) -> 8 | AX26: =RANK(AU26,$AU$26:$AU$43) -> 8 | AY26: =RANK(AU26,$AU$4:$AU$65) -> 23
A27: =INDIRECT("U10組合せ!e"&(ROW()-1)/2-7) -> 陽東ＳＳＳ
A28: B02 | E28: =IF(OR(F28="",H28=""),"",IF(F28>H28,"○",IF(F28<H28,"×",IF(F28=H28,"△")))) -> ○ | F28: =IF(L26="","",L26) -> 4 | G28: － | H28: =IF(J26="","",J26) -> 0 | M28: =IF(OR(N28="",P28=""),"",IF(N28>P28,"○",IF(N28<P28,"×",IF(N28=P28,"△")))) -> × | N28: 0 | O28: － | P28: 3 | Q28: =IF(OR(R28="",T28=""),"",IF(R28>T28,"○",IF(R28<T28,"×",IF(R28=T28,"△")))) -> △ | R28: 1 | S28: － | T28: 1 | U28: =IF(OR(V28="",X28=""),"",IF(V28>X28,"○",IF(V28<X28,"×",IF(V28=X28,"△")))) -> ○ | V28: 3 | W28: － | X28: 0 | Y28: =IF(OR(Z28="",AB28=""),"",IF(Z28>AB28,"○",IF(Z28<AB28,"×",IF(Z28=AB28,"△")))) -> △ | Z28: 1 | AA28: － | AB28: 1 | AC28: =IF(OR(AD28="",AF28=""),"",IF(AD28>AF28,"○",IF(AD28<AF28,"×",IF(AD28=AF28,"△")))) -> ○ | AD28: 3 | AE28: － | AF28: 1 | AG28: =IF(OR(AH28="",AJ28=""),"",IF(AH28>AJ28,"○",IF(AH28<AJ28,"×",IF(AH28=AJ28,"△")))) -> × | AH28: 0 | AI28: － | AJ28: 6 | AK28: =IF(OR(AL28="",AN28=""),"",IF(AL28>AN28,"○",IF(AL28<AN28,"×",IF(AL28=AN28,"△")))) -> × | AL28: 0 | AM28: － | AN28: 6 | AS28: =COUNTIF(E28:AN29,"○")+COUNTIF(E28:AN29,"×")+COUNTIF(E28:AN29,"△") -> 8 | AT28: =COUNTIF(E28:AN29,"○")*3+COUNTIF(E28:AN29,"△") -> 11 | AU28: =IF(AS28=0,0,AT28/(AS28*3)) -> 0.4583333333 | AV28: =SUM(F26,J26,N26,R26,V26,Z26,AD26,AH26,AL26,AP26)-SUM(H26,L26,P26,T26,X26,AB26,AF26,AJ26,AN26,AR26) -> -20 | AW28: 12 | AX28: =RANK(AU28,$AU$26:$AU$43) -> 5 | AY28: =RANK(AU28,$AU$4:$AU$65) -> 15
A29: =INDIRECT("U10組合せ!e"&(ROW()-1)/2-7) -> 姿川第一ＦＣ
A30: B03 | E30: =IF(OR(F30="",H30=""),"",IF(F30>H30,"○",IF(F30<H30,"×",IF(F30=H30,"△")))) -> ○ | F30: =IF(P26="","",P26) -> 3 | G30: － | H30: =IF(N26="","",N26) -> 0 | I30: =IF(OR(J30="",L30=""),"",IF(J30>L30,"○",IF(J30<L30,"×",IF(J30=L30,"△")))) -> ○ | J30: =IF(P28="","",P28) -> 3 | K30: － | L30: =IF(N28="","",N28) -> 0 | Q30: =IF(OR(R30="",T30=""),"",IF(R30>T30,"○",IF(R30<T30,"×",IF(R30=T30,"△")))) -> × | R30: 1 | S30: － | T30: 2 | U30: =IF(OR(V30="",X30=""),"",IF(V30>X30,"○",IF(V30<X30,"×",IF(V30=X30,"△")))) -> ○ | V30: 4 | W30: － | X30: 0 | Y30: =IF(OR(Z30="",AB30=""),"",IF(Z30>AB30,"○",IF(Z30<AB30,"×",IF(Z30=AB30,"△")))) -> × | Z30: 0 | AA30: － | AB30: 3 | AC30: =IF(OR(AD30="",AF30=""),"",IF(AD30>AF30,"○",IF(AD30<AF30,"×",IF(AD30=AF30,"△")))) -> ○ | AD30: 2 | AE30: － | AF30: 0 | AG30: =IF(OR(AH30="",AJ30=""),"",IF(AH30>AJ30,"○",IF(AH30<AJ30,"×",IF(AH30=AJ30,"△")))) -> × | AH30: 0 | AI30: － | AJ30: 4 | AK30: =IF(OR(AL30="",AN30=""),"",IF(AL30>AN30,"○",IF(AL30<AN30,"×",IF(AL30=AN30,"△")))) -> × | AL30: 0 | AM30: － | AN30: 1 | AS30: =COUNTIF(E30:AN31,"○")+COUNTIF(E30:AN31,"×")+COUNTIF(E30:AN31,"△") -> 8 | AT30: =COUNTIF(E30:AN31,"○")*3+COUNTIF(E30:AN31,"△") -> 12 | AU30: =IF(AS30=0,0,AT30/(AS30*3)) -> 0.5 | AV30: =SUM(F30,J30,N30,R30,V30,Z30,AD30,AH30,AL30,AP30)-SUM(H30,L30,P30,T30,X30,AB30,AF30,AJ30,AN30,AR30) -> 3 | AW30: 13 | AX30: =RANK(AU30,$AU$26:$AU$43) -> 4 | AY30: =RANK(AU30,$AU$4:$AU$65) -> 12
A31: =INDIRECT("U10組合せ!e"&(ROW()-1)/2-7) -> 豊郷ＪＦＣ宇都宮
A32: B04 | E32: =IF(OR(F32="",H32=""),"",IF(F32>H32,"○",IF(F32<H32,"×",IF(F32=H32,"△")))) -> × | F32: =IF(T26="","",T26) -> 1 | G32: － | H32: =IF(R26="","",R26) -> 2 | I32: =IF(OR(J32="",L32=""),"",IF(J32>L32,"○",IF(J32<L32,"×",IF(J32=L32,"△")))) -> △ | J32: =IF(T28="","",T28) -> 1 | K32: － | L32: =IF(R28="","",R28) -> 1 | M32: =IF(OR(N32="",P32=""),"",IF(N32>P32,"○",IF(N32<P32,"×",IF(N32=P32,"△")))) -> ○ | N32: =IF(T30="","",T30) -> 2 | O32: － | P32: =IF(R30="","",R30) -> 1 | U32: =IF(OR(V32="",X32=""),"",IF(V32>X32,"○",IF(V32<X32,"×",IF(V32=X32,"△")))) -> ○ | V32: 2 | W32: － | X32: 0 | Y32: =IF(OR(Z32="",AB32=""),"",IF(Z32>AB32,"○",IF(Z32<AB32,"×",IF(Z32=AB32,"△")))) -> × | Z32: 1 | AA32: － | AB32: 3 | AC32: =IF(OR(AD32="",AF32=""),"",IF(AD32>AF32,"○",IF(AD32<AF32,"×",IF(AD32=AF32,"△")))) -> △ | AD32: 0 | AE32: － | AF32: 0 | AG32: =IF(OR(AH32="",AJ32=""),"",IF(AH32>AJ32,"○",IF(AH32<AJ32,"×",IF(AH32=AJ32,"△")))) -> × | AH32: 0 | AI32: － | AJ32: 6 | AK32: =IF(OR(AL32="",AN32=""),"",IF(AL32>AN32,"○",IF(AL32<AN32,"×",IF(AL32=AN32,"△")))) -> × | AL32: 2 | AM32: － | AN32: 7 | AS32: =COUNTIF(E32:AN33,"○")+COUNTIF(E32:AN33,"×")+COUNTIF(E32:AN33,"△") -> 8 | AT32: =COUNTIF(E32:AN33,"○")*3+COUNTIF(E32:AN33,"△") -> 8 | AU32: =IF(AS32=0,0,AT32/(AS32*3)) -> 0.3333333333 | AV32: =SUM(F32,J32,N32,R32,V32,Z32,AD32,AH32,AL32,AP32)-SUM(H32,L32,P32,T32,X32,AB32,AF32,AJ32,AN32,AR32) -> -11 | AW32: 9 | AX32: =RANK(AU32,$AU$26:$AU$43) -> 6 | AY32: =RANK(AU32,$AU$4:$AU$65) -> 19
A33: =INDIRECT("U10組合せ!e"&(ROW()-1)/2-7) -> 石井ＦＣ
A34: B05 | E34: =IF(OR(F34="",H34=""),"",IF(F34>H34,"○",IF(F34<H34,"×",IF(F34=H34,"△")))) -> × | F34: =IF(X26="","",X26) -> 0 | G34: － | H34: =IF(V26="","",V26) -> 4 | I34: =IF(OR(J34="",L34=""),"",IF(J34>L34,"○",IF(J34<L34,"×",IF(J34=L34,"△")))) -> × | J34: =IF(X28="","",X28) -> 0 | K34: － | L34: =IF(V28="","",V28) -> 3 | M34: =IF(OR(N34="",P34=""),"",IF(N34>P34,"○",IF(N34<P34,"×",IF(N34=P34,"△")))) -> × | N34: =IF(X30="","",X30) -> 0 | O34: － | P34: =IF(V30="","",V30) -> 4 | Q34: =IF(OR(R34="",T34=""),"",IF(R34>T34,"○",IF(R34<T34,"×",IF(R34=T34,"△")))) -> × | R34: =IF(X32="","",X32) -> 0 | S34: － | T34: =IF(V32="","",V32) -> 2 | Y34: =IF(OR(Z34="",AB34=""),"",IF(Z34>AB34,"○",IF(Z34<AB34,"×",IF(Z34=AB34,"△")))) -> × | Z34: 0 | AA34: － | AB34: 6 | AC34: =IF(OR(AD34="",AF34=""),"",IF(AD34>AF34,"○",IF(AD34<AF34,"×",IF(AD34=AF34,"△")))) -> × | AD34: 0 | AE34: － | AF34: 1 | AG34: =IF(OR(AH34="",AJ34=""),"",IF(AH34>AJ34,"○",IF(AH34<AJ34,"×",IF(AH34=AJ34,"△")))) -> × | AH34: 0 | AI34: － | AJ34: 8 | AK34: =IF(OR(AL34="",AN34=""),"",IF(AL34>AN34,"○",IF(AL34<AN34,"×",IF(AL34=AN34,"△")))) -> × | AL34: 0 | AM34: － | AN34: 5 | AS34: =COUNTIF(E34:AN35,"○")+COUNTIF(E34:AN35,"×")+COUNTIF(E34:AN35,"△") -> 8 | AT34: =COUNTIF(E34:AN35,"○")*3+COUNTIF(E34:AN35,"△") -> 0 | AU34: =IF(AS34=0,0,AT34/(AS34*3)) -> 0 | AV34: =SUM(F34,J34,N34,R34,V34,Z34,AD34,AH34,AL34,AP34)-SUM(H34,L34,P34,T34,X34,AB34,AF34,AJ34,AN34,AR34) -> -33 | AW34: 0 | AX34: =RANK(AU34,$AU$26:$AU$43) -> 9 | AY34: =RANK(AU34,$AU$4:$AU$65) -> 27
A35: =INDIRECT("U10組合せ!e"&(ROW()-1)/2-7) -> シャルムグランツＳＣ
A36: B06 | E36: =IF(OR(F36="",H36=""),"",IF(F36>H36,"○",IF(F36<H36,"×",IF(F36=H36,"△")))) -> ○ | F36: =IF(AB26="","",AB26) -> 1 | G36: － | H36: =IF(Z26="","",Z26) -> 0 | I36: =IF(OR(J36="",L36=""),"",IF(J36>L36,"○",IF(J36<L36,"×",IF(J36=L36,"△")))) -> △ | J36: =IF(AB28="","",AB28) -> 1 | K36: － | L36: =IF(Z28="","",Z28) -> 1 | M36: =IF(OR(N36="",P36=""),"",IF(N36>P36,"○",IF(N36<P36,"×",IF(N36=P36,"△")))) -> ○ | N36: =IF(AB30="","",AB30) -> 3 | O36: － | P36: =IF(Z30="","",Z30) -> 0 | Q36: =IF(OR(R36="",T36=""),"",IF(R36>T36,"○",IF(R36<T36,"×",IF(R36=T36,"△")))) -> ○ | R36: =IF(AB32="","",AB32) -> 3 | S36: － | T36: =IF(Z32="","",Z32) -> 1 | U36: =IF(OR(V36="",X36=""),"",IF(V36>X36,"○",IF(V36<X36,"×",IF(V36=X36,"△")))) -> ○ | V36: =IF(AB34="","",AB34) -> 6 | W36: － | X36: =IF(Z34="","",Z34) -> 0 | AC36: =IF(OR(AD36="",AF36=""),"",IF(AD36>AF36,"○",IF(AD36<AF36,"×",IF(AD36=AF36,"△")))) -> ○ | AD36: 5 | AE36: － | AF36: 0 | AG36: =IF(OR(AH36="",AJ36=""),"",IF(AH36>AJ36,"○",IF(AH36<AJ36,"×",IF(AH36=AJ36,"△")))) -> × | AH36: 0 | AI36: － | AJ36: 8 | AK36: =IF(OR(AL36="",AN36=""),"",IF(AL36>AN36,"○",IF(AL36<AN36,"×",IF(AL36=AN36,"△")))) -> × | AL36: 1 | AM36: － | AN36: 2 | AS36: =COUNTIF(E36:AN37,"○")+COUNTIF(E36:AN37,"×")+COUNTIF(E36:AN37,"△") -> 8 | AT36: =COUNTIF(E36:AN37,"○")*3+COUNTIF(E36:AN37,"△") -> 16 | AU36: =IF(AS36=0,0,AT36/(AS36*3)) -> 0.6666666667 | AV36: =SUM(F36,J36,N36,R36,V36,Z36,AD36,AH36,AL36,AP36)-SUM(H36,L36,P36,T36,X36,AB36,AF36,AJ36,AN36,AR36) -> 8 | AW36: 20 | AX36: =RANK(AU36,$AU$26:$AU$43) -> 3 | AY36: =RANK(AU36,$AU$4:$AU$65) -> 7
A37: =INDIRECT("U10組合せ!e"&(ROW()-1)/2-7) -> ｕｎｉｏｎ ｓｃ
A38: B07 | E38: =IF(OR(F38="",H38=""),"",IF(F38>H38,"○",IF(F38<H38,"×",IF(F38=H38,"△")))) -> ○ | F38: =IF(AF26="","",AF26) -> 2 | G38: － | H38: =IF(AD26="","",AD26) -> 1 | I38: =IF(OR(J38="",L38=""),"",IF(J38>L38,"○",IF(J38<L38,"×",IF(J38=L38,"△")))) -> × | J38: =IF(AF28="","",AF28) -> 1 | K38: － | L38: =IF(AD28="","",AD28) -> 3 | M38: =IF(OR(N38="",P38=""),"",IF(N38>P38,"○",IF(N38<P38,"×",IF(N38=P38,"△")))) -> × | N38: =IF(AF30="","",AF30) -> 0 | O38: － | P38: =IF(AD30="","",AD30) -> 2 | Q38: =IF(OR(R38="",T38=""),"",IF(R38>T38,"○",IF(R38<T38,"×",IF(R38=T38,"△")))) -> △ | R38: =IF(AF32="","",AF32) -> 0 | S38: － | T38: =IF(AD32="","",AD32) -> 0 | U38: =IF(OR(V38="",X38=""),"",IF(V38>X38,"○",IF(V38<X38,"×",IF(V38=X38,"△")))) -> ○ | V38: =IF(AF34="","",AF34) -> 1 | W38: － | X38: =IF(AD34="","",AD34) -> 0 | Y38: =IF(OR(Z38="",AB38=""),"",IF(Z38>AB38,"○",IF(Z38<AB38,"×",IF(Z38=AB38,"△")))) -> × | Z38: =IF(AF36="","",AF36) -> 0 | AA38: － | AB38: =IF(AD36="","",AD36) -> 5 | AG38: =IF(OR(AH38="",AJ38=""),"",IF(AH38>AJ38,"○",IF(AH38<AJ38,"×",IF(AH38=AJ38,"△")))) -> × | AH38: 0 | AI38: － | AJ38: 5 | AK38: =IF(OR(AL38="",AN38=""),"",IF(AL38>AN38,"○",IF(AL38<AN38,"×",IF(AL38=AN38,"△")))) -> × | AL38: 0 | AM38: － | AN38: 6 | AS38: =COUNTIF(E38:AN39,"○")+COUNTIF(E38:AN39,"×")+COUNTIF(E38:AN39,"△") -> 8 | AT38: =COUNTIF(E38:AN39,"○")*3+COUNTIF(E38:AN39,"△") -> 7 | AU38: =IF(AS38=0,0,AT38/(AS38*3)) -> 0.2916666667 | AV38: =SUM(F38,J38,N38,R38,V38,Z38,AD38,AH38,AL38,AP38)-SUM(H38,L38,P38,T38,X38,AB38,AF38,AJ38,AN38,AR38) -> -18 | AW38: 4 | AX38: =RANK(AU38,$AU$26:$AU$43) -> 7 | AY38: =RANK(AU38,$AU$4:$AU$65) -> 21
A39: =INDIRECT("U10組合せ!e"&(ROW()-1)/2-7) -> ＦＣブロケード
A40: B08 | E40: =IF(OR(F40="",H40=""),"",IF(F40>H40,"○",IF(F40<H40,"×",IF(F40=H40,"△")))) -> ○ | F40: =IF(AJ26="","",AJ26) -> 11 | G40: － | H40: =IF(AH26="","",AH26) -> 0 | I40: =IF(OR(J40="",L40=""),"",IF(J40>L40,"○",IF(J40<L40,"×",IF(J40=L40,"△")))) -> ○ | J40: =IF(AJ28="","",AJ28) -> 6 | K40: － | L40: =IF(AH28="","",AH28) -> 0 | M40: =IF(OR(N40="",P40=""),"",IF(N40>P40,"○",IF(N40<P40,"×",IF(N40=P40,"△")))) -> ○ | N40: =IF(AJ30="","",AJ30) -> 4 | O40: － | P40: =IF(AH30="","",AH30) -> 0 | Q40: =IF(OR(R40="",T40=""),"",IF(R40>T40,"○",IF(R40<T40,"×",IF(R40=T40,"△")))) -> ○ | R40: =IF(AJ32="","",AJ32) -> 6 | S40: － | T40: =IF(AH32="","",AH32) -> 0 | U40: =IF(OR(V40="",X40=""),"",IF(V40>X40,"○",IF(V40<X40,"×",IF(V40=X40,"△")))) -> ○ | V40: =IF(AJ34="","",AJ34) -> 8 | W40: － | X40: =IF(AH34="","",AH34) -> 0 | Y40: =IF(OR(Z40="",AB40=""),"",IF(Z40>AB40,"○",IF(Z40<AB40,"×",IF(Z40=AB40,"△")))) -> ○ | Z40: =IF(AJ36="","",AJ36) -> 8 | AA40: － | AB40: =IF(AH36="","",AH36) -> 0 | AC40: =IF(OR(AD40="",AF40=""),"",IF(AD40>AF40,"○",IF(AD40<AF40,"×",IF(AD40=AF40,"△")))) -> ○ | AD40: =IF(AJ38="","",AJ38) -> 5 | AE40: － | AF40: =IF(AH38="","",AH38) -> 0 | AK40: =IF(OR(AL40="",AN40=""),"",IF(AL40>AN40,"○",IF(AL40<AN40,"×",IF(AL40=AN40,"△")))) -> △ | AL40: 1 | AM40: － | AN40: 1 | AS40: =COUNTIF(E40:AN41,"○")+COUNTIF(E40:AN41,"×")+COUNTIF(E40:AN41,"△") -> 8 | AT40: =COUNTIF(E40:AN41,"○")*3+COUNTIF(E40:AN41,"△") -> 22 | AU40: =IF(AS40=0,0,AT40/(AS40*3)) -> 0.9166666667 | AV40: =SUM(F40,J40,N40,R40,V40,Z40,AD40,AH40,AL40,AP40)-SUM(H40,L40,P40,T40,X40,AB40,AF40,AJ40,AN40,AR40) -> 48 | AW40: 49 | AX40: =RANK(AU40,$AU$26:$AU$43) -> 1 | AY40: =RANK(AU40,$AU$4:$AU$65) -> 2
A41: =INDIRECT("U10組合せ!e"&(ROW()-1)/2-7) -> 栃木ＳＣジュニア
A42: B09 | E42: =IF(OR(F42="",H42=""),"",IF(F42>H42,"○",IF(F42<H42,"×",IF(F42=H42,"△")))) -> ○ | F42: =IF(AN26="","",AN26) -> 6 | G42: － | H42: =IF(AL26="","",AL26) -> 1 | I42: =IF(OR(J42="",L42=""),"",IF(J42>L42,"○",IF(J42<L42,"×",IF(J42=L42,"△")))) -> ○ | J42: =IF(AN28="","",AN28) -> 6 | K42: － | L42: =IF(AL28="","",AL28) -> 0 | M42: =IF(OR(N42="",P42=""),"",IF(N42>P42,"○",IF(N42<P42,"×",IF(N42=P42,"△")))) -> ○ | N42: =IF(AN30="","",AN30) -> 1 | O42: － | P42: =IF(AL30="","",AL30) -> 0 | Q42: =IF(OR(R42="",T42=""),"",IF(R42>T42,"○",IF(R42<T42,"×",IF(R42=T42,"△")))) -> ○ | R42: =IF(AN32="","",AN32) -> 7 | S42: － | T42: =IF(AL32="","",AL32) -> 2 | U42: =IF(OR(V42="",X42=""),"",IF(V42>X42,"○",IF(V42<X42,"×",IF(V42=X42,"△")))) -> ○ | V42: =IF(AN34="","",AN34) -> 5 | W42: － | X42: =IF(AL34="","",AL34) -> 0 | Y42: =IF(OR(Z42="",AB42=""),"",IF(Z42>AB42,"○",IF(Z42<AB42,"×",IF(Z42=AB42,"△")))) -> ○ | Z42: =IF(AN36="","",AN36) -> 2 | AA42: － | AB42: =IF(AL36="","",AL36) -> 1 | AC42: =IF(OR(AD42="",AF42=""),"",IF(AD42>AF42,"○",IF(AD42<AF42,"×",IF(AD42=AF42,"△")))) -> ○ | AD42: =IF(AN38="","",AN38) -> 6 | AE42: － | AF42: =IF(AL38="","",AL38) -> 0 | AG42: =IF(OR(AH42="",AJ42=""),"",IF(AH42>AJ42,"○",IF(AH42<AJ42,"×",IF(AH42=AJ42,"△")))) -> △ | AH42: =IF(AN40="","",AN40) -> 1 | AI42: － | AJ42: =IF(AL40="","",AL40) -> 1 | AS42: =COUNTIF(E42:AN43,"○")+COUNTIF(E42:AN43,"×")+COUNTIF(E42:AN43,"△") -> 8 | AT42: =COUNTIF(E42:AN43,"○")*3+COUNTIF(E42:AN43,"△") -> 22 | AU42: =IF(AS42=0,0,AT42/(AS42*3)) -> 0.9166666667 | AV42: =SUM(F42,J42,N42,R42,V42,Z42,AD42,AH42,AL42,AP42)-SUM(H42,L42,P42,T42,X42,AB42,AF42,AJ42,AN42,AR42) -> 29 | AW42: 34 | AX42: =RANK(AU42,$AU$26:$AU$43) -> 1 | AY42: =RANK(AU42,$AU$4:$AU$65) -> 2
A43: =INDIRECT("U10組合せ!e"&(ROW()-1)/2-7) -> 国本ＪＳＣ
A45: =A1 -> ＪＦＡ U-10サッカーリーグ2018（in栃木） 宇河地域リーグ戦（後期） 星取表
A47: Ｃブロック | E47: =A49 -> Ｓ４スペランツァ | I47: =A51 -> みはらＳＣ Ｊｒ | M47: =A53 -> ＦＣグラシアス | Q47: =A55 -> サウス宇都宮ＳＣ | U47: =A57 -> ＦＣグランディール宇都宮 | Y47: =A59 -> 昭和・戸祭ＳＣ | AC47: =A61 -> カテット白沢ＳＳ | AG47: =A63 -> 宇都宮北部ＦＣトレ | AK47: =A65 -> ともぞうＳＣ U10 | AS47: 試合数 | AT47: 勝ち点 | AU47: 勝ち点率 | AV47: 得失差 | AW47: 得点 | AX47: ブロック 順位 | AY47: 総合 順位
A48: C01 | I48: =IF(OR(J48="",L48=""),"",IF(J48>L48,"○",IF(J48<L48,"×",IF(J48=L48,"△")))) -> ○ | J48: 4 | K48: － | L48: 3 | M48: =IF(OR(N48="",P48=""),"",IF(N48>P48,"○",IF(N48<P48,"×",IF(N48=P48,"△")))) -> ○ | N48: 3 | O48: － | P48: 0 | Q48: =IF(OR(R48="",T48=""),"",IF(R48>T48,"○",IF(R48<T48,"×",IF(R48=T48,"△")))) -> ○ | R48: 5 | S48: － | T48: 0 | U48: =IF(OR(V48="",X48=""),"",IF(V48>X48,"○",IF(V48<X48,"×",IF(V48=X48,"△")))) -> × | V48: 0 | W48: － | X48: 3 | Y48: =IF(OR(Z48="",AB48=""),"",IF(Z48>AB48,"○",IF(Z48<AB48,"×",IF(Z48=AB48,"△")))) -> ○ | Z48: 2 | AA48: － | AB48: 0 | AC48: =IF(OR(AD48="",AF48=""),"",IF(AD48>AF48,"○",IF(AD48<AF48,"×",IF(AD48=AF48,"△")))) -> △ | AD48: 0 | AE48: － | AF48: 0 | AG48: =IF(OR(AH48="",AJ48=""),"",IF(AH48>AJ48,"○",IF(AH48<AJ48,"×",IF(AH48=AJ48,"△")))) -> ○ | AH48: 15 | AI48: － | AJ48: 0 | AK48: =IF(OR(AL48="",AN48=""),"",IF(AL48>AN48,"○",IF(AL48<AN48,"×",IF(AL48=AN48,"△")))) -> × | AL48: 0 | AM48: － | AN48: 1 | AS48: =COUNTIF(E48:AN49,"○")+COUNTIF(E48:AN49,"×")+COUNTIF(E48:AN49,"△") -> 8 | AT48: =COUNTIF(E48:AN49,"○")*3+COUNTIF(E48:AN49,"△") -> 16 | AU48: =IF(AS48=0,0,AT48/(AS48*3)) -> 0.6666666667 | AV48: =SUM(F48,J48,N48,R48,V48,Z48,AD48,AH48,AL48,AP48)-SUM(H48,L48,P48,T48,X48,AB48,AF48,AJ48,AN48,AR48) -> 22 | AW48: =SUM(F48,J48,N48,R48,V48,Z48,AD48,AH48,AL48,AP48,) -> 29 | AX48: =RANK(AU48,$AU$48:$AU$65) -> 3 | AY48: =RANK(AU48,$AU$4:$AU$65) -> 7
A49: =INDIRECT("U10組合せ!g"&(ROW()-1)/2-18) -> Ｓ４スペランツァ
A50: C02 | E50: =IF(OR(F50="",H50=""),"",IF(F50>H50,"○",IF(F50<H50,"×",IF(F50=H50,"△")))) -> × | F50: =IF(L48="","",L48) -> 3 | G50: － | H50: =IF(J48="","",J48) -> 4 | M50: =IF(OR(N50="",P50=""),"",IF(N50>P50,"○",IF(N50<P50,"×",IF(N50=P50,"△")))) -> ○ | N50: 3 | O50: － | P50: 1 | Q50: =IF(OR(R50="",T50=""),"",IF(R50>T50,"○",IF(R50<T50,"×",IF(R50=T50,"△")))) -> ○ | R50: 5 | S50: － | T50: 0 | U50: =IF(OR(V50="",X50=""),"",IF(V50>X50,"○",IF(V50<X50,"×",IF(V50=X50,"△")))) -> × | V50: 1 | W50: － | X50: 3 | Y50: =IF(OR(Z50="",AB50=""),"",IF(Z50>AB50,"○",IF(Z50<AB50,"×",IF(Z50=AB50,"△")))) -> △ | Z50: 2 | AA50: － | AB50: 2 | AC50: =IF(OR(AD50="",AF50=""),"",IF(AD50>AF50,"○",IF(AD50<AF50,"×",IF(AD50=AF50,"△")))) -> ○ | AD50: 1 | AE50: － | AF50: 0 | AG50: =IF(OR(AH50="",AJ50=""),"",IF(AH50>AJ50,"○",IF(AH50<AJ50,"×",IF(AH50=AJ50,"△")))) -> ○ | AH50: 12 | AI50: － | AJ50: 0 | AK50: =IF(OR(AL50="",AN50=""),"",IF(AL50>AN50,"○",IF(AL50<AN50,"×",IF(AL50=AN50,"△")))) -> × | AL50: 1 | AM50: － | AN50: 2 | AS50: =COUNTIF(E50:AN51,"○")+COUNTIF(E50:AN51,"×")+COUNTIF(E50:AN51,"△") -> 8 | AT50: =COUNTIF(E50:AN51,"○")*3+COUNTIF(E50:AN51,"△") -> 13 | AU50: =IF(AS50=0,0,AT50/(AS50*3)) -> 0.5416666667 | AV50: =SUM(F50,J50,N50,R50,V50,Z50,AD50,AH50,AL50,AP50)-SUM(H50,L50,P50,T50,X50,AB50,AF50,AJ50,AN50,AR50) -> 16 | AW50: 28 | AX50: =RANK(AU50,$AU$48:$AU$65) -> 5 | AY50: =RANK(AU50,$AU$4:$AU$65) -> 11
A51: =INDIRECT("U10組合せ!g"&(ROW()-1)/2-18) -> みはらＳＣ Ｊｒ
A52: C03 | E52: =IF(OR(F52="",H52=""),"",IF(F52>H52,"○",IF(F52<H52,"×",IF(F52=H52,"△")))) -> × | F52: =IF(P48="","",P48) -> 0 | G52: － | H52: =IF(N48="","",N48) -> 3 | I52: =IF(OR(J52="",L52=""),"",IF(J52>L52,"○",IF(J52<L52,"×",IF(J52=L52,"△")))) -> × | J52: =IF(P50="","",P50) -> 1 | K52: － | L52: =IF(N50="","",N50) -> 3 | Q52: =IF(OR(R52="",T52=""),"",IF(R52>T52,"○",IF(R52<T52,"×",IF(R52=T52,"△")))) -> ○ | R52: 4 | S52: － | T52: 1 | U52: =IF(OR(V52="",X52=""),"",IF(V52>X52,"○",IF(V52<X52,"×",IF(V52=X52,"△")))) -> × | V52: 0 | W52: － | X52: 3 | Y52: =IF(OR(Z52="",AB52=""),"",IF(Z52>AB52,"○",IF(Z52<AB52,"×",IF(Z52=AB52,"△")))) -> × | Z52: 0 | AA52: － | AB52: 2 | AC52: =IF(OR(AD52="",AF52=""),"",IF(AD52>AF52,"○",IF(AD52<AF52,"×",IF(AD52=AF52,"△")))) -> × | AD52: 0 | AE52: － | AF52: 1 | AG52: =IF(OR(AH52="",AJ52=""),"",IF(AH52>AJ52,"○",IF(AH52<AJ52,"×",IF(AH52=AJ52,"△")))) -> ○ | AH52: 6 | AI52: － | AJ52: 0 | AK52: =IF(OR(AL52="",AN52=""),"",IF(AL52>AN52,"○",IF(AL52<AN52,"×",IF(AL52=AN52,"△")))) -> × | AL52: 1 | AM52: － | AN52: 7 | AS52: =COUNTIF(E52:AN53,"○")+COUNTIF(E52:AN53,"×")+COUNTIF(E52:AN53,"△") -> 8 | AT52: =COUNTIF(E52:AN53,"○")*3+COUNTIF(E52:AN53,"△") -> 6 | AU52: =IF(AS52=0,0,AT52/(AS52*3)) -> 0.25 | AV52: =SUM(F52,J52,N52,R52,V52,Z52,AD52,AH52,AL52,AP52)-SUM(H52,L52,P52,T52,X52,AB52,AF52,AJ52,AN52,AR52) -> -8 | AW52: 12 | AX52: =RANK(AU52,$AU$48:$AU$65) -> 7 | AY52: =RANK(AU52,$AU$4:$AU$65) -> 23
A53: =INDIRECT("U10組合せ!g"&(ROW()-1)/2-18) -> ＦＣグラシアス
A54: C04 | E54: =IF(OR(F54="",H54=""),"",IF(F54>H54,"○",IF(F54<H54,"×",IF(F54=H54,"△")))) -> × | F54: =IF(T48="","",T48) -> 0 | G54: － | H54: =IF(R48="","",R48) -> 5 | I54: =IF(OR(J54="",L54=""),"",IF(J54>L54,"○",IF(J54<L54,"×",IF(J54=L54,"△")))) -> × | J54: =IF(T50="","",T50) -> 0 | K54: － | L54: =IF(R50="","",R50) -> 5 | M54: =IF(OR(N54="",P54=""),"",IF(N54>P54,"○",IF(N54<P54,"×",IF(N54=P54,"△")))) -> × | N54: =IF(T52="","",T52) -> 1 | O54: － | P54: =IF(R52="","",R52) -> 4 | U54: =IF(OR(V54="",X54=""),"",IF(V54>X54,"○",IF(V54<X54,"×",IF(V54=X54,"△")))) -> × | V54: 0 | W54: － | X54: 6 | Y54: =IF(OR(Z54="",AB54=""),"",IF(Z54>AB54,"○",IF(Z54<AB54,"×",IF(Z54=AB54,"△")))) -> × | Z54: 0 | AA54: － | AB54: 6 | AC54: =IF(OR(AD54="",AF54=""),"",IF(AD54>AF54,"○",IF(AD54<AF54,"×",IF(AD54=AF54,"△")))) -> × | AD54: 0 | AE54: － | AF54: 1 | AG54: =IF(OR(AH54="",AJ54=""),"",IF(AH54>AJ54,"○",IF(AH54<AJ54,"×",IF(AH54=AJ54,"△")))) -> ○ | AH54: 2 | AI54: － | AJ54: 1 | AK54: =IF(OR(AL54="",AN54=""),"",IF(AL54>AN54,"○",IF(AL54<AN54,"×",IF(AL54=AN54,"△")))) -> × | AL54: 0 | AM54: － | AN54: 6 | AS54: =COUNTIF(E54:AN55,"○")+COUNTIF(E54:AN55,"×")+COUNTIF(E54:AN55,"△") -> 8 | AT54: =COUNTIF(E54:AN55,"○")*3+COUNTIF(E54:AN55,"△") -> 3 | AU54: =IF(AS54=0,0,AT54/(AS54*3)) -> 0.125 | AV54: =SUM(F54,J54,N54,R54,V54,Z54,AD54,AH54,AL54,AP54)-SUM(H54,L54,P54,T54,X54,AB54,AF54,AJ54,AN54,AR54) -> -31 | AW54: 3 | AX54: =RANK(AU54,$AU$48:$AU$65) -> 8 | AY54: =RANK(AU54,$AU$4:$AU$65) -> 26
A55: =INDIRECT("U10組合せ!g"&(ROW()-1)/2-18) -> サウス宇都宮ＳＣ
A56: C05 | E56: =IF(OR(F56="",H56=""),"",IF(F56>H56,"○",IF(F56<H56,"×",IF(F56=H56,"△")))) -> ○ | F56: =IF(X48="","",X48) -> 3 | G56: － | H56: =IF(V48="","",V48) -> 0 | I56: =IF(OR(J56="",L56=""),"",IF(J56>L56,"○",IF(J56<L56,"×",IF(J56=L56,"△")))) -> ○ | J56: =IF(X50="","",X50) -> 3 | K56: － | L56: =IF(V50="","",V50) -> 1 | M56: =IF(OR(N56="",P56=""),"",IF(N56>P56,"○",IF(N56<P56,"×",IF(N56=P56,"△")))) -> ○ | N56: =IF(X52="","",X52) -> 3 | O56: － | P56: =IF(V52="","",V52) -> 0 | Q56: =IF(OR(R56="",T56=""),"",IF(R56>T56,"○",IF(R56<T56,"×",IF(R56=T56,"△")))) -> ○ | R56: =IF(X54="","",X54) -> 6 | S56: － | T56: =IF(V54="","",V54) -> 0 | Y56: =IF(OR(Z56="",AB56=""),"",IF(Z56>AB56,"○",IF(Z56<AB56,"×",IF(Z56=AB56,"△")))) -> ○ | Z56: 3 | AA56: － | AB56: 0 | AC56: =IF(OR(AD56="",AF56=""),"",IF(AD56>AF56,"○",IF(AD56<AF56,"×",IF(AD56=AF56,"△")))) -> ○ | AD56: 3 | AE56: － | AF56: 1 | AG56: =IF(OR(AH56="",AJ56=""),"",IF(AH56>AJ56,"○",IF(AH56<AJ56,"×",IF(AH56=AJ56,"△")))) -> ○ | AH56: 17 | AI56: － | AJ56: 0 | AK56: =IF(OR(AL56="",AN56=""),"",IF(AL56>AN56,"○",IF(AL56<AN56,"×",IF(AL56=AN56,"△")))) -> △ | AL56: 0 | AM56: － | AN56: 0 | AS56: =COUNTIF(E56:AN57,"○")+COUNTIF(E56:AN57,"×")+COUNTIF(E56:AN57,"△") -> 8 | AT56: =COUNTIF(E56:AN57,"○")*3+COUNTIF(E56:AN57,"△") -> 22 | AU56: =IF(AS56=0,0,AT56/(AS56*3)) -> 0.9166666667 | AV56: =SUM(F56,J56,N56,R56,V56,Z56,AD56,AH56,AL56,AP56)-SUM(H56,L56,P56,T56,X56,AB56,AF56,AJ56,AN56,AR56) -> 36 | AW56: 38 | AX56: =RANK(AU56,$AU$48:$AU$65) -> 1 | AY56: =RANK(AU56,$AU$4:$AU$65) -> 2
A57: =INDIRECT("U10組合せ!g"&(ROW()-1)/2-18) -> ＦＣグランディール宇都宮
A58: C06 | E58: =IF(OR(F58="",H58=""),"",IF(F58>H58,"○",IF(F58<H58,"×",IF(F58=H58,"△")))) -> × | F58: =IF(AB48="","",AB48) -> 0 | G58: － | H58: =IF(Z48="","",Z48) -> 2 | I58: =IF(OR(J58="",L58=""),"",IF(J58>L58,"○",IF(J58<L58,"×",IF(J58=L58,"△")))) -> △ | J58: =IF(AB50="","",AB50) -> 2 | K58: － | L58: =IF(Z50="","",Z50) -> 2 | M58: =IF(OR(N58="",P58=""),"",IF(N58>P58,"○",IF(N58<P58,"×",IF(N58=P58,"△")))) -> ○ | N58: =IF(AB52="","",AB52) -> 2 | O58: － | P58: =IF(Z52="","",Z52) -> 0 | Q58: =IF(OR(R58="",T58=""),"",IF(R58>T58,"○",IF(R58<T58,"×",IF(R58=T58,"△")))) -> ○ | R58: =IF(AB54="","",AB54) -> 6 | S58: － | T58: =IF(Z54="","",Z54) -> 0 | U58: =IF(OR(V58="",X58=""),"",IF(V58>X58,"○",IF(V58<X58,"×",IF(V58=X58,"△")))) -> × | V58: =IF(AB56="","",AB56) -> 0 | W58: － | X58: =IF(Z56="","",Z56) -> 3 | AC58: =IF(OR(AD58="",AF58=""),"",IF(AD58>AF58,"○",IF(AD58<AF58,"×",IF(AD58=AF58,"△")))) -> × | AD58: 0 | AE58: － | AF58: 1 | AG58: =IF(OR(AH58="",AJ58=""),"",IF(AH58>AJ58,"○",IF(AH58<AJ58,"×",IF(AH58=AJ58,"△")))) -> ○ | AH58: 6 | AI58: － | AJ58: 0 | AK58: =IF(OR(AL58="",AN58=""),"",IF(AL58>AN58,"○",IF(AL58<AN58,"×",IF(AL58=AN58,"△")))) -> × | AL58: 0 | AM58: － | AN58: 4 | AS58: =COUNTIF(E58:AN59,"○")+COUNTIF(E58:AN59,"×")+COUNTIF(E58:AN59,"△") -> 8 | AT58: =COUNTIF(E58:AN59,"○")*3+COUNTIF(E58:AN59,"△") -> 10 | AU58: =IF(AS58=0,0,AT58/(AS58*3)) -> 0.4166666667 | AV58: =SUM(F58,J58,N58,R58,V58,Z58,AD58,AH58,AL58,AP58)-SUM(H58,L58,P58,T58,X58,AB58,AF58,AJ58,AN58,AR58) -> 4 | AW58: 16 | AX58: =RANK(AU58,$AU$48:$AU$65) -> 6 | AY58: =RANK(AU58,$AU$4:$AU$65) -> 17
A59: =INDIRECT("U10組合せ!g"&(ROW()-1)/2-18) -> 昭和・戸祭ＳＣ
A60: C07 | E60: =IF(OR(F60="",H60=""),"",IF(F60>H60,"○",IF(F60<H60,"×",IF(F60=H60,"△")))) -> △ | F60: =IF(AF48="","",AF48) -> 0 | G60: － | H60: =IF(AD48="","",AD48) -> 0 | I60: =IF(OR(J60="",L60=""),"",IF(J60>L60,"○",IF(J60<L60,"×",IF(J60=L60,"△")))) -> × | J60: =IF(AF50="","",AF50) -> 0 | K60: － | L60: =IF(AD50="","",AD50) -> 1 | M60: =IF(OR(N60="",P60=""),"",IF(N60>P60,"○",IF(N60<P60,"×",IF(N60=P60,"△")))) -> ○ | N60: =IF(AF52="","",AF52) -> 1 | O60: － | P60: =IF(AD52="","",AD52) -> 0 | Q60: =IF(OR(R60="",T60=""),"",IF(R60>T60,"○",IF(R60<T60,"×",IF(R60=T60,"△")))) -> ○ | R60: =IF(AF54="","",AF54) -> 1 | S60: － | T60: =IF(AD54="","",AD54) -> 0 | U60: =IF(OR(V60="",X60=""),"",IF(V60>X60,"○",IF(V60<X60,"×",IF(V60=X60,"△")))) -> × | V60: =IF(AF56="","",AF56) -> 1 | W60: － | X60: =IF(AD56="","",AD56) -> 3 | Y60: =IF(OR(Z60="",AB60=""),"",IF(Z60>AB60,"○",IF(Z60<AB60,"×",IF(Z60=AB60,"△")))) -> ○ | Z60: =IF(AF58="","",AF58) -> 1 | AA60: － | AB60: =IF(AD58="","",AD58) -> 0 | AG60: =IF(OR(AH60="",AJ60=""),"",IF(AH60>AJ60,"○",IF(AH60<AJ60,"×",IF(AH60=AJ60,"△")))) -> ○ | AH60: 4 | AI60: － | AJ60: 0 | AK60: =IF(OR(AL60="",AN60=""),"",IF(AL60>AN60,"○",IF(AL60<AN60,"×",IF(AL60=AN60,"△")))) -> △ | AL60: 0 | AM60: － | AN60: 0 | AS60: =COUNTIF(E60:AN61,"○")+COUNTIF(E60:AN61,"×")+COUNTIF(E60:AN61,"△") -> 8 | AT60: =COUNTIF(E60:AN61,"○")*3+COUNTIF(E60:AN61,"△") -> 14 | AU60: =IF(AS60=0,0,AT60/(AS60*3)) -> 0.5833333333 | AV60: =SUM(F60,J60,N60,R60,V60,Z60,AD60,AH60,AL60,AP60)-SUM(H60,L60,P60,T60,X60,AB60,AF60,AJ60,AN60,AR60) -> 4 | AW60: 8 | AX60: =RANK(AU60,$AU$48:$AU$65) -> 4 | AY60: =RANK(AU60,$AU$4:$AU$65) -> 10
A61: =INDIRECT("U10組合せ!g"&(ROW()-1)/2-18) -> カテット白沢ＳＳ
A62: C08 | E62: =IF(OR(F62="",H62=""),"",IF(F62>H62,"○",IF(F62<H62,"×",IF(F62=H62,"△")))) -> × | F62: =IF(AJ48="","",AJ48) -> 0 | G62: － | H62: =IF(AH48="","",AH48) -> 15 | I62: =IF(OR(J62="",L62=""),"",IF(J62>L62,"○",IF(J62<L62,"×",IF(J62=L62,"△")))) -> × | J62: =IF(AJ50="","",AJ50) -> 0 | K62: － | L62: =IF(AH50="","",AH50) -> 12 | M62: =IF(OR(N62="",P62=""),"",IF(N62>P62,"○",IF(N62<P62,"×",IF(N62=P62,"△")))) -> × | N62: =IF(AJ52="","",AJ52) -> 0 | O62: － | P62: =IF(AH52="","",AH52) -> 6 | Q62: =IF(OR(R62="",T62=""),"",IF(R62>T62,"○",IF(R62<T62,"×",IF(R62=T62,"△")))) -> × | R62: =IF(AJ54="","",AJ54) -> 1 | S62: － | T62: =IF(AH54="","",AH54) -> 2 | U62: =IF(OR(V62="",X62=""),"",IF(V62>X62,"○",IF(V62<X62,"×",IF(V62=X62,"△")))) -> × | V62: =IF(AJ56="","",AJ56) -> 0 | W62: － | X62: =IF(AH56="","",AH56) -> 17 | Y62: =IF(OR(Z62="",AB62=""),"",IF(Z62>AB62,"○",IF(Z62<AB62,"×",IF(Z62=AB62,"△")))) -> × | Z62: =IF(AJ58="","",AJ58) -> 0 | AA62: － | AB62: =IF(AH58="","",AH58) -> 6 | AC62: =IF(OR(AD62="",AF62=""),"",IF(AD62>AF62,"○",IF(AD62<AF62,"×",IF(AD62=AF62,"△")))) -> × | AD62: =IF(AJ60="","",AJ60) -> 0 | AE62: － | AF62: =IF(AH60="","",AH60) -> 4 | AK62: =IF(OR(AL62="",AN62=""),"",IF(AL62>AN62,"○",IF(AL62<AN62,"×",IF(AL62=AN62,"△")))) -> × | AL62: 0 | AM62: － | AN62: 18 | AS62: =COUNTIF(E62:AN63,"○")+COUNTIF(E62:AN63,"×")+COUNTIF(E62:AN63,"△") -> 8 | AT62: =COUNTIF(E62:AN63,"○")*3+COUNTIF(E62:AN63,"△") -> 0 | AU62: =IF(AS62=0,0,AT62/(AS62*3)) -> 0 | AV62: =SUM(F62,J62,N62,R62,V62,Z62,AD62,AH62,AL62,AP62)-SUM(H62,L62,P62,T62,X62,AB62,AF62,AJ62,AN62,AR62) -> -79 | AW62: 1 | AX62: =RANK(AU62,$AU$48:$AU$65) -> 9 | AY62: =RANK(AU62,$AU$4:$AU$65) -> 27
A63: =INDIRECT("U10組合せ!g"&(ROW()-1)/2-18) -> 宇都宮北部ＦＣトレ
A64: C09 | E64: =IF(OR(F64="",H64=""),"",IF(F64>H64,"○",IF(F64<H64,"×",IF(F64=H64,"△")))) -> ○ | F64: =IF(AN48="","",AN48) -> 1 | G64: － | H64: =IF(AL48="","",AL48) -> 0 | I64: =IF(OR(J64="",L64=""),"",IF(J64>L64,"○",IF(J64<L64,"×",IF(J64=L64,"△")))) -> ○ | J64: =IF(AN50="","",AN50) -> 2 | K64: － | L64: =IF(AL50="","",AL50) -> 1 | M64: =IF(OR(N64="",P64=""),"",IF(N64>P64,"○",IF(N64<P64,"×",IF(N64=P64,"△")))) -> ○ | N64: =IF(AN52="","",AN52) -> 7 | O64: － | P64: =IF(AL52="","",AL52) -> 1 | Q64: =IF(OR(R64="",T64=""),"",IF(R64>T64,"○",IF(R64<T64,"×",IF(R64=T64,"△")))) -> ○ | R64: =IF(AN54="","",AN54) -> 6 | S64: － | T64: =IF(AL54="","",AL54) -> 0 | U64: =IF(OR(V64="",X64=""),"",IF(V64>X64,"○",IF(V64<X64,"×",IF(V64=X64,"△")))) -> △ | V64: =IF(AN56="","",AN56) -> 0 | W64: － | X64: =IF(AL56="","",AL56) -> 0 | Y64: =IF(OR(Z64="",AB64=""),"",IF(Z64>AB64,"○",IF(Z64<AB64,"×",IF(Z64=AB64,"△")))) -> ○ | Z64: =IF(AN58="","",AN58) -> 4 | AA64: － | AB64: =IF(AL58="","",AL58) -> 0 | AC64: =IF(OR(AD64="",AF64=""),"",IF(AD64>AF64,"○",IF(AD64<AF64,"×",IF(AD64=AF64,"△")))) -> △ | AD64: =IF(AN60="","",AN60) -> 0 | AE64: － | AF64: =IF(AL60="","",AL60) -> 0 | AG64: =IF(OR(AH64="",AJ64=""),"",IF(AH64>AJ64,"○",IF(AH64<AJ64,"×",IF(AH64=AJ64,"△")))) -> ○ | AH64: =IF(AN62="","",AN62) -> 18 | AI64: － | AJ64: =IF(AL62="","",AL62) -> 0 | AS64: =COUNTIF(E64:AN65,"○")+COUNTIF(E64:AN65,"×")+COUNTIF(E64:AN65,"△") -> 8 | AT64: =COUNTIF(E64:AN65,"○")*3+COUNTIF(E64:AN65,"△") -> 20 | AU64: =IF(AS64=0,0,AT64/(AS64*3)) -> 0.8333333333 | AV64: =SUM(F64,J64,N64,R64,V64,Z64,AD64,AH64,AL64,AP64)-SUM(H64,L64,P64,T64,X64,AB64,AF64,AJ64,AN64,AR64) -> 36 | AW64: 38 | AX64: =RANK(AU64,$AU$48:$AU$65) -> 2 | AY64: =RANK(AU64,$AU$4:$AU$65) -> 5
A65: =INDIRECT("U10組合せ!g"&(ROW()-1)/2-18) -> ともぞうＳＣ U10

Sheet U１０順位
A1: ＪＦＡ U-10サッカーリーグ2018（in栃木） 宇河地域リーグ戦（後期）
A2: 順位表 （９／２３ 全節終了時）
A3: 勝ち点率＝勝ち点÷（試合数×３）
B4: チーム | D4: 勝ち点 | E4: 試合数 | F4: 勝ち点率 | G4: 順位
A5: 1 | B5: Ａ02 | C5: ＦＣアネーロ宇都宮 U10 | D5: =VLOOKUP($B5,■!$A$2:$D$29,4,FALSE) -> 27 | E5: =VLOOKUP($B5,■!$A$2:$D$29,3,FALSE) -> 9 | F5: =IF(E5=0,0,D5/(E5*3)) -> 1 | G5: =RANK(F5,$F$5:$F$32,0)&"位" -> 1位
A6: 2 | B6: Ｂ08 | C6: 栃木ＳＣジュニア | D6: =VLOOKUP($B6,■!$A$2:$D$29,4,FALSE) -> 22 | E6: =VLOOKUP($B6,■!$A$2:$D$29,3,FALSE) -> 8 | F6: =IF(E6=0,0,D6/(E6*3)) -> 0.9166666667 | G6: =RANK(F6,$F$5:$F$32,0)&"位" -> 2位
A7: 3 | B7: Ｂ09 | C7: 国本ＪＳＣ | D7: =VLOOKUP($B7,■!$A$2:$D$29,4,FALSE) -> 22 | E7: =VLOOKUP($B7,■!$A$2:$D$29,3,FALSE) -> 8 | F7: =IF(E7=0,0,D7/(E7*3)) -> 0.9166666667 | G7: =RANK(F7,$F$5:$F$32,0)&"位" -> 2位
A8: 4 | B8: Ｃ05 | C8: ＦＣグランディール宇都宮 | D8: =VLOOKUP($B8,■!$A$2:$D$29,4,FALSE) -> 22 | E8: =VLOOKUP($B8,■!$A$2:$D$29,3,FALSE) -> 8 | F8: =IF(E8=0,0,D8/(E8*3)) -> 0.9166666667 | G8: =RANK(F8,$F$5:$F$32,0)&"位" -> 2位
A9: 5 | B9: Ｃ09 | C9: ともぞうＳＣ U10 | D9: =VLOOKUP($B9,■!$A$2:$D$29,4,FALSE) -> 20 | E9: =VLOOKUP($B9,■!$A$2:$D$29,3,FALSE) -> 8 | F9: =IF(E9=0,0,D9/(E9*3)) -> 0.8333333333 | G9: =RANK(F9,$F$5:$F$32,0)&"位" -> 5位
A10: 6 | B10: Ａ08 | C10: 緑が丘ＹＦＣ | D10: =VLOOKUP($B10,■!$A$2:$D$29,4,FALSE) -> 19 | E10: =VLOOKUP($B10,■!$A$2:$D$29,3,FALSE) -> 9 | F10: =IF(E10=0,0,D10/(E10*3)) -> 0.7037037037 | G10: =RANK(F10,$F$5:$F$32,0)&"位" -> 6位
A11: 7 | B11: Ｂ06 | C11: ｕｎｉｏｎ ｓｃ | D11: =VLOOKUP($B11,■!$A$2:$D$29,4,FALSE) -> 16 | E11: =VLOOKUP($B11,■!$A$2:$D$29,3,FALSE) -> 8 | F11: =IF(E11=0,0,D11/(E11*3)) -> 0.6666666667 | G11: =RANK(F11,$F$5:$F$32,0)&"位" -> 7位
A12: 8 | B12: Ｃ01 | C12: Ｓ４スペランツァ | D12: =VLOOKUP($B12,■!$A$2:$D$29,4,FALSE) -> 16 | E12: =VLOOKUP($B12,■!$A$2:$D$29,3,FALSE) -> 8 | F12: =IF(E12=0,0,D12/(E12*3)) -> 0.6666666667 | G12: =RANK(F12,$F$5:$F$32,0)&"位" -> 7位
A13: 9 | B13: Ａ04 | C13: 雀宮ＦＣ | D13: =VLOOKUP($B13,■!$A$2:$D$29,4,FALSE) -> 16 | E13: =VLOOKUP($B13,■!$A$2:$D$29,3,FALSE) -> 9 | F13: =IF(E13=0,0,D13/(E13*3)) -> 0.5925925926 | G13: =RANK(F13,$F$5:$F$32,0)&"位" -> 9位
A14: 10 | B14: Ｃ07 | C14: カテット白沢ＳＳ | D14: =VLOOKUP($B14,■!$A$2:$D$29,4,FALSE) -> 14 | E14: =VLOOKUP($B14,■!$A$2:$D$29,3,FALSE) -> 8 | F14: =IF(E14=0,0,D14/(E14*3)) -> 0.5833333333 | G14: =RANK(F14,$F$5:$F$32,0)&"位" -> 10位
A15: 11 | B15: Ｃ02 | C15: みはらＳＣ Ｊｒ | D15: =VLOOKUP($B15,■!$A$2:$D$29,4,FALSE) -> 13 | E15: =VLOOKUP($B15,■!$A$2:$D$29,3,FALSE) -> 8 | F15: =IF(E15=0,0,D15/(E15*3)) -> 0.5416666667 | G15: =RANK(F15,$F$5:$F$32,0)&"位" -> 11位
A16: 12 | B16: Ｂ03 | C16: 豊郷ＪＦＣ宇都宮 | D16: =VLOOKUP($B16,■!$A$2:$D$29,4,FALSE) -> 12 | E16: =VLOOKUP($B16,■!$A$2:$D$29,3,FALSE) -> 8 | F16: =IF(E16=0,0,D16/(E16*3)) -> 0.5 | G16: =RANK(F16,$F$5:$F$32,0)&"位" -> 12位
A17: 13 | B17: Ａ06 | C17: 上河内ＪＳＣ | D17: =VLOOKUP($B17,■!$A$2:$D$29,4,FALSE) -> 13 | E17: =VLOOKUP($B17,■!$A$2:$D$29,3,FALSE) -> 9 | F17: =IF(E17=0,0,D17/(E17*3)) -> 0.4814814815 | G17: =RANK(F17,$F$5:$F$32,0)&"位" -> 13位
A18: 14 | B18: Ａ07 | C18: 清原ＳＳＳ | D18: =VLOOKUP($B18,■!$A$2:$D$29,4,FALSE) -> 13 | E18: =VLOOKUP($B18,■!$A$2:$D$29,3,FALSE) -> 9 | F18: =IF(E18=0,0,D18/(E18*3)) -> 0.4814814815 | G18: =RANK(F18,$F$5:$F$32,0)&"位" -> 13位
A19: 15 | B19: Ｂ02 | C19: 姿川第一ＦＣ | D19: =VLOOKUP($B19,■!$A$2:$D$29,4,FALSE) -> 11 | E19: =VLOOKUP($B19,■!$A$2:$D$29,3,FALSE) -> 8 | F19: =IF(E19=0,0,D19/(E19*3)) -> 0.4583333333 | G19: =RANK(F19,$F$5:$F$32,0)&"位" -> 15位
A20: 16 | B20: Ａ01 | C20: ＳＵＧＡＯ ＳＣ | D20: =VLOOKUP($B20,■!$A$2:$D$29,4,FALSE) -> 12 | E20: =VLOOKUP($B20,■!$A$2:$D$29,3,FALSE) -> 9 | F20: =IF(E20=0,0,D20/(E20*3)) -> 0.4444444444 | G20: =RANK(F20,$F$5:$F$32,0)&"位" -> 16位
A21: 17 | B21: Ｃ06 | C21: 昭和・戸祭ＳＣ | D21: =VLOOKUP($B21,■!$A$2:$D$29,4,FALSE) -> 10 | E21: =VLOOKUP($B21,■!$A$2:$D$29,3,FALSE) -> 8 | F21: =IF(E21=0,0,D21/(E21*3)) -> 0.4166666667 | G21: =RANK(F21,$F$5:$F$32,0)&"位" -> 17位
A22: 18 | B22: Ａ09 | C22: ＦＣペンサーレ | D22: =VLOOKUP($B22,■!$A$2:$D$29,4,FALSE) -> 10 | E22: =VLOOKUP($B22,■!$A$2:$D$29,3,FALSE) -> 9 | F22: =IF(E22=0,0,D22/(E22*3)) -> 0.3703703704 | G22: =RANK(F22,$F$5:$F$32,0)&"位" -> 18位
A23: 19 | B23: Ｂ04 | C23: 石井ＦＣ | D23: =VLOOKUP($B23,■!$A$2:$D$29,4,FALSE) -> 8 | E23: =VLOOKUP($B23,■!$A$2:$D$29,3,FALSE) -> 8 | F23: =IF(E23=0,0,D23/(E23*3)) -> 0.3333333333 | G23: =RANK(F23,$F$5:$F$32,0)&"位" -> 19位
A24: 20 | B24: Ａ10 | C24: 富士見ＳＳＳ | D24: =VLOOKUP($B24,■!$A$2:$D$29,4,FALSE) -> 8 | E24: =VLOOKUP($B24,■!$A$2:$D$29,3,FALSE) -> 9 | F24: =IF(E24=0,0,D24/(E24*3)) -> 0.2962962963 | G24: =RANK(F24,$F$5:$F$32,0)&"位" -> 20位
A25: 21 | B25: Ｂ07 | C25: ＦＣブロケード | D25: =VLOOKUP($B25,■!$A$2:$D$29,4,FALSE) -> 7 | E25: =VLOOKUP($B25,■!$A$2:$D$29,3,FALSE) -> 8 | F25: =IF(E25=0,0,D25/(E25*3)) -> 0.2916666667 | G25: =RANK(F25,$F$5:$F$32,0)&"位" -> 21位
A26: 22 | B26: Ａ03 | C26: ＦＣアリーバ | D26: =VLOOKUP($B26,■!$A$2:$D$29,4,FALSE) -> 7 | E26: =VLOOKUP($B26,■!$A$2:$D$29,3,FALSE) -> 9 | F26: =IF(E26=0,0,D26/(E26*3)) -> 0.2592592593 | G26: =RANK(F26,$F$5:$F$32,0)&"位" -> 22位
A27: 23 | B27: Ｂ01 | C27: 陽東ＳＳＳ | D27: =VLOOKUP($B27,■!$A$2:$D$29,4,FALSE) -> 6 | E27: =VLOOKUP($B27,■!$A$2:$D$29,3,FALSE) -> 8 | F27: =IF(E27=0,0,D27/(E27*3)) -> 0.25 | G27: =RANK(F27,$F$5:$F$32,0)&"位" -> 23位
A28: 24 | B28: Ｃ03 | C28: ＦＣグラシアス | D28: =VLOOKUP($B28,■!$A$2:$D$29,4,FALSE) -> 6 | E28: =VLOOKUP($B28,■!$A$2:$D$29,3,FALSE) -> 8 | F28: =IF(E28=0,0,D28/(E28*3)) -> 0.25 | G28: =RANK(F28,$F$5:$F$32,0)&"位" -> 23位
A29: 25 | B29: Ａ05 | C29: ブラッドレスＳＳ | D29: =VLOOKUP($B29,■!$A$2:$D$29,4,FALSE) -> 5 | E29: =VLOOKUP($B29,■!$A$2:$D$29,3,FALSE) -> 9 | F29: =IF(E29=0,0,D29/(E29*3)) -> 0.1851851852 | G29: =RANK(F29,$F$5:$F$32,0)&"位" -> 25位
A30: 26 | B30: Ｃ04 | C30: サウス宇都宮ＳＣ | D30: =VLOOKUP($B30,■!$A$2:$D$29,4,FALSE) -> 3 | E30: =VLOOKUP($B30,■!$A$2:$D$29,3,FALSE) -> 8 | F30: =IF(E30=0,0,D30/(E30*3)) -> 0.125 | G30: =RANK(F30,$F$5:$F$32,0)&"位" -> 26位
A31: 27 | B31: Ｂ05 | C31: シャルムグランツＳＣ | D31: =VLOOKUP($B31,■!$A$2:$D$29,4,FALSE) -> 0 | E31: =VLOOKUP($B31,■!$A$2:$D$29,3,FALSE) -> 8 | F31: =IF(E31=0,0,D31/(E31*3)) -> 0 | G31: =RANK(F31,$F$5:$F$32,0)&"位" -> 27位
A32: 28 | B32: Ｃ08 | C32: 宇都宮北部ＦＣトレ | D32: =VLOOKUP($B32,■!$A$2:$D$29,4,FALSE) -> 0 | E32: =VLOOKUP($B32,■!$A$2:$D$29,3,FALSE) -> 8 | F32: =IF(E32=0,0,D32/(E32*3)) -> 0 | G32: =RANK(F32,$F$5:$F$32,0)&"位" -> 27位
